{"text_format":"1","workbook":"xlsx","n_sheets":1,"sheets":["ADA CONSTRUCTION SEP 2025 CAA"],"not_rendered":{"charts":0,"images":0,"macros":1,"external_links":1,"defined_names":0,"comments":1,"pivot_tables":0},"unopened":[],"bounds":{"document_bytes":16777216,"sheet_cells":100000,"rows_first":2000,"rows_last":500,"rows_between":2000,"halvings":0,"cell_chars":16384,"cell_head_chars":4096},"cells_cut":0,"cells_raw":0,"read":"whole","date_system":"1900"}

{"sheet":"ADA CONSTRUCTION SEP 2025 CAA","index":0,"n_rows":353,"n_cols":10,"rows_kept":353,"cut":false,"hidden":false,"merged":[]}
["DEPARTMENT OF TRANSPORTATION - CALTRANS"]
["DBE Commitment at Award (CAA) on Federally Funded Major Construction Contracts - October 1, 2024 - September 30, 2025"]
[]
["Total Award Amount Year-to-Date (YTD)",null,"Total DBE Commitment Amount YTD",null,null,"Total Prime Contracts Awarded YTD"]
[2562085759.2399998,null,{"$f":"SUM(C7:C18)","v":567871557.63},null,null,{"$f":"SUM(C327:C350,I327:I350,F327:F350)","v":141}]
["Groups",null,"Commitment Dollars YTD","Firms YTD","Contracts YTD","% of Contracts","% of DBE $","% of Total $"]
["Hispanic American Male",null,{"$f":"SUMIF(D30:D144,\"m\", C30:C144)","v":194929105.33999997},{"$f":"COUNTIF(D30:D144,\"M\")","v":85},{"$f":"SUMIF(D30:D144,\"M\",E30:E144)","v":358},{"$f":"E7/E20","v":0.32486388384754988},{"$f":"C7/C5","v":0.34326266691984453},{"$f":"C7/A5","v":7.608219382860254E-2}]
["Hispanic American Female",null,{"$f":"SUMIF(D30:D144,\"F\", C30:C144)","v":65142452.679999992},{"$f":"COUNTIF(D30:D144,\"F\")","v":27},{"$f":"SUMIF(D30:D144,\"F\",E30:E144)","v":141},{"$f":"E8/E20","v":0.1279491833030853},{"$f":"C8/C5","v":0.11471335692858196},{"$f":"C8/A5","v":2.5425555114643554E-2}]
["African American Male",null,{"$f":"SUMIF(D163:D183,\"m\", C163:C183)","v":15199249.779999999},{"$f":"COUNTIF(D163:D183,\"M\")","v":15},{"$f":"SUMIF(D163:D183,\"M\",E163:E183)","v":41},{"$f":"E9/E20","v":3.720508166969147E-2},{"$f":"C9/C5","v":2.6765295031562681E-2},{"$f":"C9/A5","v":5.9323735457272927E-3}]
["African American Female",null,{"$f":"SUMIF(D163:D183,\"F\", C163:C183)","v":7812861.2399999993},{"$f":"COUNTIF(D163:D183,\"F\")","v":5},{"$f":"SUMIF(D163:D183,\"F\",E163:E183)","v":16},{"$f":"E10/E20","v":1.4519056261343012E-2},{"$f":"C10/C5","v":1.3758148537332652E-2},{"$f":"C10/A5","v":3.0494144123878021E-3}]
["Asian Pacific Male",null,{"$f":"SUMIF(D210:D232,\"m\", C210:C232)","v":24188591.349999998},{"$f":"COUNTIF(D210:D232,\"M\")","v":14},{"$f":"SUMIF(D210:D232,\"M\",E210:E232)","v":60},{"$f":"E11/E20","v":5.4446460980036297E-2},{"$f":"C11/C5","v":4.2595180239261454E-2},{"$f":"C11/A5","v":9.4409764633230468E-3}]
["Asian Pacific Female",null,{"$f":"SUMIF(D210:D232,\"F\", C210:C232)","v":24910696.16},{"$f":"COUNTIF(D210:D232,\"F\")","v":7},{"$f":"SUMIF(D210:D232,\"F\",E210:E232)","v":52},{"$f":"E12/E20","v":4.7186932849364795E-2},{"$f":"C12/C5","v":4.3866779072303366E-2},{"$f":"C12/A5","v":9.7228190235869958E-3}]
["Subcontinent Asian Male",null,{"$f":"SUMIF(D186:D207,\"m\", C186:C207)","v":29544104.049999997},{"$f":"COUNTIF(D186:D207,\"M\")","v":17},{"$f":"SUMIF(D186:D207,\"M\",E186:E207)","v":64},{"$f":"E13/E20","v":5.8076225045372049E-2},{"$f":"C13/C5","v":5.2026032388911486E-2},{"$f":"C13/A5","v":1.1531270545277831E-2}]
["Subcontinent Asian Female",null,{"$f":"SUMIF(D186:D207,\"F\", C186:C207)","v":0},{"$f":"COUNTIF(D186:D207,\"F\")","v":0},{"$f":"SUMIF(D186:D207,\"F\",E186:E207)","v":0},{"$f":"E14/E20","v":0},{"$f":"C14/C5","v":0},{"$f":"C14/A5","v":0}]
["Native American Male",null,{"$f":"SUMIF(D147:D160,\"m\", C147:C160)","v":15288352.689999999},{"$f":"COUNTIF(D147:D160,\"M\")","v":7},{"$f":"SUMIF(D147:D160,\"M\",E147:E160)","v":28},{"$f":"E15/E20","v":2.5408348457350273E-2},{"$f":"C15/C5","v":2.692220183346674E-2},{"$f":"C15/A5","v":5.9671510349969849E-3}]
["Native American Female",null,{"$f":"SUMIF(D147:D160,\"F\", C147:C160)","v":7876625.1500000004},{"$f":"COUNTIF(D147:D160,\"F\")","v":5},{"$f":"SUMIF(D147:D160,\"F\",E147:E160)","v":9},{"$f":"E16/E20","v":8.1669691470054439E-3},{"$f":"C16/C5","v":1.3870434333554105E-2},{"$f":"C16/A5","v":3.0743019126481036E-3}]
["Non Minority Women",null,{"$f":"SUMIF(D239:D322,\"F\", C239:C322)","v":182921439.19},{"$f":"COUNTIF(D239:D322,\"F\")","v":80},{"$f":"SUMIF(D239:D322,\"F\",E239:E322)","v":332},{"$f":"E17/E20","v":0.30127041742286753},{"$f":"C17/C5","v":0.32211762806614014},{"$f":"C17/A5","v":7.1395517706737729E-2}]
["Other Men",null,{"$f":"SUMIF(D235:D236,\"m\", C235:C236)","v":58080},{"$f":"COUNTIF(D235:D236,\"M\")","v":1},{"$f":"SUMIF(D235:D236,\"M\",E235:E236)","v":1},{"$f":"E18/E20","v":9.0744101633393826E-4},{"$f":"C18/C5","v":1.0227664904084237E-4},{"$f":"C18/A5","v":2.2669030414199902E-5}]
[null,null,null,null,null,{"$f":"E19/E20","v":0},{"$f":"C19/C5","v":0},{"$f":"C19/A5","v":0}]
["Total  ",null,{"$f":"SUM(C7:C18)","v":567871557.63},{"$f":"SUM(D7:D19)","v":263},{"$f":"SUM(E7:E19)","v":1102}]
["Total Primes Contracts",null,{"$f":"SUM(C327:C350,I327:I350,F327:F350)","v":141}]
[]
["Yellow = DBEs",null,"Green = Trucking",{"$f":"COUNTIF(B30:B322,43)","v":51},{"$f":"SUMIF(B29:B322,\"43\",C29:C322)","v":69626059.450000003},{"$f":"E23/C5","v":0.12260881622700545}]
["Red = Prime Contractor",null,"Blue = Supplier",{"$f":"COUNTIF(B30:B322,33)","v":46},{"$f":"SUMIF(B29:B322,\"33\",C29:C322)","v":167874260.77999997},{"$f":"E24/C5","v":0.29562012487580758}]
["Red Italic = DBE firm as Prime",null,"White = Other",{"$f":"COUNTIF(B30:B322,-4142)","v":166},{"$f":"C5-(E23+E24)","v":330371237.40000004},{"$f":"E25/C5","v":0.58177105889718694}]
["BOLD = women"]
["* = Used both as Trucking & Supplier"]
[]
["Hispanic American","Column1","Dollars","M/F","# of Contracts","Contract #","# of Primes","Prime Name","Districts"]
["3P LANDSCAPING",-4142,{"$f":"'[1]Construction Worksheet'!G7","v":13500},"M",1,{"$f":"FETCHCOMMENT(E30)","v":"07-355204"},1,{"$f":"FETCHCOMMENT(G30)","v":"GRANITE CONSTRUCTION COMPANY"},7]
["1 PASS SWEEPING, INC.",43,{"$f":"'[1]Construction Worksheet'!G14","v":562540},"M",4,{"$f":"FETCHCOMMENT(E31)","v":"12-0K91U4\n07-348204\n12-0R3114\n07-319604"},3,{"$f":"FETCHCOMMENT(G31)","v":"GRANITE CONSTRUCTION COMPANY\nBOSCO CONSTRUCTORS, INC.\nBEADOR CONSTRUCTION COMPANY, INC."},"7,12"]
["A STAR SWEEPING",-4142,{"$f":"'[1]Construction Worksheet'!G20","v":17200},"M",1,{"$f":"FETCHCOMMENT(E32)","v":"04-0Q2004"},1,{"$f":"FETCHCOMMENT(G32)","v":"GHILOTTI BROS., INC."},4]
["A&M CONSULTING ENGINEERS",-4142,{"$f":"'[1]Construction Worksheet'!G37","v":240300},"M",13,{"$f":"FETCHCOMMENT(E33)","v":"08-1J6104\n04-0K6404\n04-2K7404\n03-3H8304\n04-2Q8004\n05-1H6504\n04-0K8004\n05-1J8604\n07-347904\n07-351704\n12-0R3114\n10-1H7004\n09-374504"},13,{"$f":"FETCHCOMMENT(G33)","v":"FBD VANGUARD CONSTRUCTION, INC.\nO.C. JONES & SONS INC\nBAY CITIES PAVING & GRADING\nPACIFIC INFRASTRUCTURE CONSTRUCTION, LLC\nGORDON N. BALL, INC.\nGRANITE CONSTRUCTION COMPANY\nGHILOTTI BROS INC\nPAPICH CONSTRUCTION COMPANY\nRASMUSSEN/VANGUARD\nC. A. RASMUSSEN, INC.\nBEADOR CONSTRUCTION COMPANY, INC.\nGEORGE REED, INC.\nCALIFORNIA HIGHWAY CONSTRUCTION GROUP, INC."},"3,4,5,7,8,9,10,12"]
["ABSL CONSTRUCTION",-4142,{"$f":"'[1]Construction Worksheet'!G72","v":4411661.8699999992},"M",31,{"$f":"FETCHCOMMENT(E34)","v":"03-4H8704\n05-1J7804\n02-3H6904\n04-2Q6104\n07-333604\n10-0Q2104\n01-0F7104\n04-0P9204\n04-2K7404\n04-3J2604\n05-1H6504\n06-487404\n10-1L2804\n04-0K8004\n04-2Q5504\n07-346804\n09-374704\n10-1L8704\n06-0Y1704\n07-347904\n05-1N3404\n01-0K8904\n04-2K3604\n10-1H7004\n04-0AA624\n04-0Q1304\n04-2Q5204\n01-0K9504\n04-1Q7214\n09-374504\n03-4J1204"},16,{"$f":"FETCHCOMMENT(G34)","v":"O.C. JONES & SONS INC\nCALPORTLAND CONSTRUCTION\nDIG IT CONSTRUCTION, INC.\nGRANITE ROCK COMPANY\nSULLY-MILLER CONTRACTING COMPANY\nBAY CITIES PAVING & GRADING, INC.\nGHILOTTI CONSTRUCTION COMPANY INC\nMYERS & SONS CONSTRUCGTION LLC\nGHILOTTI BROS INC\nTORO ENTERPRISES INC\nPAPICH CONSTRUCTION COMPANY\nRASMUSSEN/VANGUARD\nSOUZA ENGINEERING CONTRACTING, INC. DBA SOUZA CONSTRUCTION\nGRANITE CONSTRUCTION COMPANY\nGEORGE REED, INC.\nCALIFORNIA HIGHWAY CONSTRUCTION GROUP, INC."},"1,2,3,4,5,6,7,9,10"]
["ADVANTAGE DEMOLITION & GRADING, INC.",-4142,{"$f":"'[1]Construction Worksheet'!G77","v":450000},"M",1,{"$f":"FETCHCOMMENT(E35)","v":"06-487404"},1,{"$f":"FETCHCOMMENT(G35)","v":"GRANITE CONSTRUCTION COMPANY"},6]
["ALCORN FENCE COMPANY",-4142,{"$f":"'[1]Construction Worksheet'!G88","v":3364613.3600000003},"M",7,{"$f":"FETCHCOMMENT(E36)","v":"08-1J6104\n12-0R32U4\n05-1J8604\n07-348204\n07-346304\n07-355204\n12-0M9704"},7,{"$f":"FETCHCOMMENT(G36)","v":"FBD VANGUARD CONSTRUCTION, INC.\nR.J. NOBLE COMPANY\nPAPICH CONSTRUCTION COMPANY, INC.\nBOSCO CONSTRUCTORS, INC.\nCHUMO CONSTRUCTION, INC.\nGRANITE CONSTRUCTION COMPANY\nORITZ ENTERPRISES INC"},"5,7,8,12"]
["ALEXIS TRUCKING",-4142,{"$f":"'[1]Construction Worksheet'!C8","v":116160},"F",1,{"$f":"FETCHCOMMENT(E37)","v":"08-1M0404"},1,{"$f":"FETCHCOMMENT(G37)","v":"INTERSTATE CIVIL CONSTRUCTION"},8]
["ARIBISO TRANSPORTATION INC",43,{"$f":"'[1]Construction Worksheet'!G102","v":742000},"M",1,{"$f":"FETCHCOMMENT(E38)","v":"02-0J8504"},1,{"$f":"FETCHCOMMENT(G38)","v":"TULLIS INC"},2]
["ATHENA TRUCKING",43,{"$f":"'[1]Construction Worksheet'!G94","v":200000},"M",1,{"$f":"FETCHCOMMENT(E39)","v":"12-0K91U4"},1,{"$f":"FETCHCOMMENT(G39)","v":"GRANITE CONSTRUCTION COMPANY"},12]
["AUSTIN ENTERPRISE",-4142,{"$f":"'[1]Construction Worksheet'!C45","v":1670885.8800000001},"F",19,{"$f":"FETCHCOMMENT(E40)","v":"11-430384\n05-1J7804\n08-1J6104\n04-2K7404\n04-2Q8004\n05-1K4504\n05-1K6404\n06-487404\n12-0K91U4\n08-1K6904\n04-0K8004\n04-2Q5504\n07-347904\n07-351704\n08-1M7404\n10-1H7004\n05-1H4704\n07-319604\n12-0S5304"},12,{"$f":"FETCHCOMMENT(G40)","v":"HAZARD CONSTRUCTION ENGINEERING INC\nCALPORTLAND CONSTRUCTION\nFBD VANGUARD CONSTRUCTION, INC.\nBAY CITIES PAVING & GRADING, INC.\nGORDON N. BALL, INC.\nGRANITE CONSTRUCTION COMPANY\nGHILOTTI BROS INC\nRASMUSSEN/VANGUARD\nC. A. RASMUSSEN, INC.\nINTERSTATE CIVIL CONSTRUCTION\nGEORGE REED, INC.\nBEADOR CONSTRUCTION COMPANY INC"},"4,5,6,7,8,10,11,12"]
["BAY LINE CUTTING & CORING",-4142,{"$f":"'[1]Construction Worksheet'!G117","v":690089.78},"M",6,{"$f":"FETCHCOMMENT(E41)","v":"05-1H6504\n04-0Q2004\n04-0Q1304\n04-2Q5204\n04-1Q7214\n03-4J1204"},4,{"$f":"FETCHCOMMENT(G41)","v":"GRANITE CONSTRUCTION COMPANY\nGHILOTTI BROS., INC.\nO.C. JONES & SONS, INC.\nBAY CITIES PAVING & GRADING, INC."},"3,4,5"]
["BCK CONSULTING",-4142,{"$f":"'[1]Construction Worksheet'!C50","v":9000},"F",1,{"$f":"FETCHCOMMENT(E42)","v":"01-0H6504"},1,{"$f":"FETCHCOMMENT(G42)","v":"WAHLUND CONSTRUCTION, INC."},1]
["BT TRUCKING, INC.",43,{"$f":"'[1]Construction Worksheet'!G122","v":627744},"M",2,{"$f":"FETCHCOMMENT(E43)","v":"07-351704\n07-369704"},1,{"$f":"FETCHCOMMENT(G43)","v":"C. A. RASMUSSEN, INC."},7]
["C&N REINFORCING INC",-4142,{"$f":"'[1]Construction Worksheet'!G139","v":2637223.7200000002},"M",7,{"$f":"FETCHCOMMENT(E44)","v":"04-2Q5504\n04-0P9304\n05-1G9504\n05-1G9504\n04-1Q7214\n05-1H4704\n10-0X7404"},4,{"$f":"FETCHCOMMENT(G44)","v":"BAY CITIES PAVING & GRADING INC\nBUGLER CONSTRUCTION, INC.\nGORDON N BALL INC\nSTEELHEAD CONSTRUCTORS JV"},"4, 5,10"]
["CENTRAL COAST TRAFFIC SAFETY",33,{"$f":"'[1]Construction Worksheet'!G148","v":547549.30000000005},"M",4,{"$f":"FETCHCOMMENT(E45)","v":"05-1Q03U4\n05-1J8604\n05-1N3404\n07-355204"},3,{"$f":"FETCHCOMMENT(G45)","v":"PAPICH CONSTRUCTION COMPANY, INC.\nSOUZA ENGINEERING CONTRACTING, INC. DBA SOUZA CONSTRUCTION\nGRANITE CONSTRUCTION COMPANY"},"5,7"]
["CENTRAL VALLEY REINFORCING",33,{"$f":"'[1]Construction Worksheet'!G155","v":13350},"M",1,{"$f":"FETCHCOMMENT(E46)","v":"05-1N3404\n"},1,{"$f":"FETCHCOMMENT(G46)","v":"SOUZA ENGINEERING CONTRACTING, INC. DBA SOUZA CONSTRUCTION"},5]
["CHAVEZ TRUCKING",43,{"$f":"'[1]Construction Worksheet'!C58","v":2408174.6399999997},"F",5,{"$f":"FETCHCOMMENT(E47)","v":"04-2Q6104\n04-2K7404\n04-3J2604\n04-2Q8004\n04-2Q5204"},4,{"$f":"FETCHCOMMENT(G47)","v":"GRANITE ROCK COMPANY\nBAY CITIES PAVING & GRADING, INC.\nO.C. JONES & SONS, INC.\nGORDON N. BALL, INC."},4]
["COASTLINE COMMERCIAL SWEEPERS INC",43,{"$f":"'[1]Construction Worksheet'!C65","v":287910},"F",2,{"$f":"FETCHCOMMENT(E48)","v":"07-332304\n07-346804"},1,{"$f":"FETCHCOMMENT(G48)","v":"TORO ENTERPRISES INC"},7]
["COVARRUBIAS TRAFFIC CONTROL",-4142,{"$f":"'[1]Construction Worksheet'!C75","v":1751700},"F",4,{"$f":"FETCHCOMMENT(E49)","v":"07-4X9704\n08-1K4004\n12-0R3114\n07-319604"},1,{"$f":"FETCHCOMMENT(G49)","v":"BEADOR CONSTRUCTION COMPANY, INC."},"7,8,12"]
["CUJO CONSTRUCTION INC",33,{"$f":"'[1]Construction Worksheet'!C85","v":262582},"F",3,{"$f":"FETCHCOMMENT(E50)","v":"07-358404\n12-0K91U4\n12-0S8404"},2,{"$f":"FETCHCOMMENT(G50)","v":"YAKAR\nGRANITE CONSTRUCTION COMPANY\nBAKER ELECTRIC & RENEWABLES, LLC"},"7,12"]
["D.B. ELECTRIC INC",-4142,{"$f":"'[1]Construction Worksheet'!G170","v":12616078},"M",5,{"$f":"FETCHCOMMENT(E51)","v":"08-1J3004\n12-0R3114\n08-1J5404\n08-1C07U4\n12-0S5304"},5,{"$f":"FETCHCOMMENT(G51)","v":"SULLY-MILLER CONTRACTING COMPANY\nBEADOR CONSTRUCTION COMPANY, INC.\nFLATIRON WEST\nGRIFFITH COMPANY\nGRANITE CONSTRUCTION COMPANY"},"8,12"]
["D.C. DRILLING INC",-4142,{"$f":"'[1]Construction Worksheet'!G176","v":10770.94},"M",1,{"$f":"FETCHCOMMENT(E52)","v":"12-0S8404"},1,{"$f":"FETCHCOMMENT(G52)","v":"BAKER ELECTRIC & RENEWABLES, LLC"},12]
["DC TRAFFIC CONTROL",-4142,{"$f":"'[1]Construction Worksheet'!G187","v":615060},"M",2,{"$f":"FETCHCOMMENT(E53)","v":"06-487404\n07-348204"},2,{"$f":"FETCHCOMMENT(G53)","v":"GRANITE CONSTRUCTION COMPANY\nBOSCO CONSTRUCTORS, INC."},"6,7"]
["DELTA BAY CONSULTANTS LLC",-4142,{"$f":"'[1]Construction Worksheet'!G205","v":21600},"M",14,{"$f":"FETCHCOMMENT(E54)","v":"03-4H8704\n01-0F7104\n02-0K6404\n01-0H6404\n05-1H6504\n05-1K6404\n04-4G7804\n07-347904\n12-0K8704\n01-0K8904\n02-2J2204\n01-0H6504\n03-3J9004\n10-0X7404"},10,{"$f":"FETCHCOMMENT(G54)","v":"O.C. JONES & SONS INC\nGHILOTTI CONSTRUCTION COMPANY\nMCCUEN CONSTRUCTION\nRASMUSSEN/VANGUARD\nORTIZ ENTERPRISES INC\nGRANITE CONSTRUCTION COMPANY\nHIGHWAY SPECIALTY COMPANY INC\nWAHLUND CONSTRUCTION, INC.\nPACIFIC INFRASTRUCTURE INC\nSTEELHEAD CONSTRUCTORS JV"},"1,2,3,4,7,10,12"]
["DESIGN BUILD ENGINEERING",-4142,{"$f":"'[1]Construction Worksheet'!G215","v":3264640.1},"M",7,{"$f":"FETCHCOMMENT(E55)","v":"07-348404\n07-356504\n12-0K91U4\n12-0R57U4\n07-370404\n07-347904\n07-369704"},6,{"$f":"FETCHCOMMENT(G55)","v":"ACCU CONSTRUCTION, INC.\nGRANITE CONSTRUCTION COMPANY\nSECURITY PAVING COMPANY, INC.\nGRIFFITH COMPANY\nRASMUSSEN/VANGUARD\nC. A. RASMUSSEN, INC."},"7,12"]
["DIRT DYNASTY, INC.",-4142,{"$f":"'[1]Construction Worksheet'!G241","v":10200},"M",1,{"$f":"FETCHCOMMENT(E56)","v":"10-1H7004"},1,{"$f":"FETCHCOMMENT(G56)","v":"GEORGE REED, INC."},10]
["DON MAHAFFEY DRILLING",-4142,{"$f":"'[1]Construction Worksheet'!C91","v":201426.4},"F",1,{"$f":"FETCHCOMMENT(E57)","v":"12-0K8704"},1,{"$f":"FETCHCOMMENT(G57)","v":"ORTIZ ENTERPRISES INC"},12]
["DRAGON MATERIAL TRANSPORT",33,{"$f":"'[1]Construction Worksheet'!C102","v":1778259.9700000002},"F",5,{"$f":"FETCHCOMMENT(E58)","v":"05-1H6504\n06-487404\n04-0K8004\n04-4G7804\n02-0J8504"},4,{"$f":"FETCHCOMMENT(G58)","v":"GRANITE CONSTRUCTION COMPANY\nGHILOTTI BROS INC\nO.C. JONES & SONS, INC.\nTULLIS INC"},"2,4,5,6"]
["DRS REBAR INC",-4142,{"$f":"'[1]Construction Worksheet'!G235","v":1809871.51},"M",11,{"$f":"FETCHCOMMENT(E59)","v":"11-430384\n08-1J7204\n12-0R3154\n07-370404\n12-0R32U4\n07-347904\n12-0R3114\n12-OK8704\n08-1J5404\n08-1J3104\n12-0S5304"},10,{"$f":"FETCHCOMMENT(G59)","v":"HAZARD CONSTRUCTION ENGR, LLC\nSULLY-MILLER CONTRACTING COMPANY\nPOWELL CONSTRUCTORS, INC.\nGRIFFITH COMPANY\nR.J. NOBLE COMPANY\nRASMUSSEN/VANGUARD\nBEADOR CONSTRUCTION COMPANY, INC.\nORTIZ ENTERPRISES INC\nINTERSTATE CIVIL CONSTRUCTION\nGRANITE CONSTRUCTION COMPANY"},"7,8,11,12"]
["EIGHTEEN TRUCKING",43,{"$f":"'[1]Construction Worksheet'!C107","v":501960},"F",2,{"$f":"FETCHCOMMENT(E60)","v":"04-2Q8004\n05-1H4704"},1,{"$f":"FETCHCOMMENT(G60)","v":"GORDON N. BALL, INC."},"4,5"]
["ENDEMIC ENVIRONMENTAL SERVICES",-4142,{"$f":"'[1]Construction Worksheet'!G260","v":1264645},"M",12,{"$f":"FETCHCOMMENT(E61)","v":"03-0J01U4\n05-1J7804\n12-0R3134\n01-0F7104\n03-3H8304\n08-1J2704\n12-0R57U4\n08-1K6904\n06-0W79U4\n01-0H6504\n03-0J5604\n03-4J1204"},10,{"$f":"FETCHCOMMENT(G61)","v":"MERCER-FRASER COMPANY\nCALPORTLAND CONSTRUCTION\nPETERSON-CHASE GENERAL ENGINEERING CONSTRUCTION, INC.\nGHILOTTI CONSTRUCTION COMPANY\nPACIFIC INFRASTRUCTURE CONSTRUCTION, LLC\nSULLY-MILLER CONTRACTING COMPANY\nSECURITY PAVING COMPANY, INC.\nGRANITE CONSTRUCTION COMPANY\nWAHLUND CONSTRUCTION, INC.\nBAY CITIES PAVING & GRADING"},"1,3,5,6,8,12"]
["FLASH TRAFFIC INC",-4142,{"$f":"'[1]Construction Worksheet'!C115","v":84180},"F",2,{"$f":"FETCHCOMMENT(E62)","v":"07-332304\n07-355204"},2,{"$f":"FETCHCOMMENT(G62)","v":"TORO ENTERPRISES\nGRANITE CONSTRUCTION COMPANY"},7]
["FORTE ENGINEERING",-4142,{"$f":"'[1]Construction Worksheet'!C120","v":3808431.4000000004},"F",2,{"$f":"FETCHCOMMENT(E63)","v":"07-347904\n07-346504"},2,{"$f":"FETCHCOMMENT(G63)","v":"RASMUSSEN/VANGUARD\nSECURITY PAVING COMPANY, INC."},7]
["FRONTLINE TRAFFIC CONTROL",-4142,{"$f":"'[1]Construction Worksheet'!G281","v":486735},"M",3,{"$f":"FETCHCOMMENT(E64)","v":"07-358404\n07-348504\n12-0S5304"},2,{"$f":"FETCHCOMMENT(G64)","v":"YAKAR\nGRANITE CONSTRUCTION COMPANY"},"7,12"]
["FULL TRAFFIC MAINTENANCE, INC.",-4142,{"$f":"'[1]Construction Worksheet'!G290","v":874254.42999999993},"M",4,{"$f":"FETCHCOMMENT(E65)","v":"07-351704\n12-0K8704\n12-0S8404\n12-0M9704"},2,{"$f":"FETCHCOMMENT(G65)","v":"C. A. RASMUSSEN, INC.\nORTIZ ENTERPRISES INC\nBAKER ELECTRIC & RENEWABLES, LLC"},"7,12"]
["G&F CONCRETE CUTTING",-4142,{"$f":"'[1]Construction Worksheet'!C128","v":1593133.7},"F",4,{"$f":"FETCHCOMMENT(E66)","v":"12-0R57U4\n12-0R3114\n08-0G8504\n08-1J5404"},4,{"$f":"FETCHCOMMENT(G66)","v":"SECURITY PAVING COMPANY, INC.\nBEADOR CONSTRUCTION COMPANY, INC.\nGRANITE CONSTRUCTION COMPANY\nFLATIRON WEST INC"},"8,12"]
["G&G ELECTRIC",-4142,{"$f":"'[1]Construction Worksheet'!G296","v":5379795},"M",1,{"$f":"FETCHCOMMENT(E67)","v":"12-0R3154"},1,{"$f":"FETCHCOMMENT(G67)","v":"POWELL CONSTRUCTORS, INC."},12]
["GALVAN REINFORCING COMPANY",-4142,{"$f":"'[1]Construction Worksheet'!G301","v":303761.8},"M",2,{"$f":"FETCHCOMMENT(E68)","v":"07-350314\n07-346504"},2,{"$f":"FETCHCOMMENT(G68)","v":"CROSSTOWN ELECTRICAL & DATA, INC.\nSECURITY PAVING COMPANY, INC."},7]
["GEO-STRUCTURAL ENGINEERING",-4142,{"$f":"'[1]Construction Worksheet'!G307","v":864254},"M",2,{"$f":"FETCHCOMMENT(E69)","v":"07-4X9704\n05-1G9504"},2,{"$f":"FETCHCOMMENT(G69)","v":"BEADOR CONSTRUCTION COMPANY, INC.\nGORDON N BALL"},"5,7"]
["GLJ CONSTRUCTION",-4142,{"$f":"'[1]Construction Worksheet'!G313","v":1124000},"M",1,{"$f":"FETCHCOMMENT(E70)","v":"01-0H6504"},1,{"$f":"FETCHCOMMENT(G70)","v":"WAHLUND CONSTRUCTION, INC."},1]
["G.O. RODRIGUEZ TRUCKING",43,{"$f":"'[1]Construction Worksheet'!G319","v":15120},"M",1,{"$f":"FETCHCOMMENT(E71)","v":"07-4X9704"},1,{"$f":"FETCHCOMMENT(G71)","v":"BEADOR CONSTRUCTION COMPANY, INC."},7]
["GOLDEN BAY FENCE PLUS IRON",33,{"$f":"'[1]Construction Worksheet'!G330","v":1235267.74},"M",6,{"$f":"FETCHCOMMENT(E72)","v":"04-3J2604\n05-1H6504\n04-0K8004\n07-332304\n05-1G9504\n04-2Q5204"},6,{"$f":"FETCHCOMMENT(G72)","v":"O.C. JONES & SONS, INC.\nGRANITE CONSTRUCTION COMPANY\nGHILOTTI BROS INC\nTORO ENTERPRISES INC\nGORDON N BALL INC\nBAY CITIES PAVING & GRADING, INC."},"4,5,7"]
["GREENCOAST LANDSCAPE, INC.",-4142,{"$f":"'[1]Construction Worksheet'!C140","v":4165384},"F",7,{"$f":"FETCHCOMMENT(E73)","v":"05-1K4504\n05-1J8604\n07-347904\n07-351704\n07-360704\n05-1H4404\n07-319604"},4,{"$f":"FETCHCOMMENT(G73)","v":"CALPORTLAND CONSTRUCTION\nPAPICH CONSTRUCTION COMPANY, INC.\nRASMUSSEN/VANGUARD\nC. A. RASMUSSEN, INC.\nMCM CONSTRUCTION\nBEADOR CONSTRUCTION COMPANY INC\n"},"5,7"]
["H&G CONSTRUCTION",-4142,{"$f":"'[1]Construction Worksheet'!G336","v":985978.8},"M",2,{"$f":"FETCHCOMMENT(E74)","v":"04-2Q5504\n04-0Q1304"},2,{"$f":"FETCHCOMMENT(G74)","v":"BAY CITIES PAVING & GRADING INC\nO.C. JONES & SONS, INC."},4]
["HIGH LIGHT ELECTRIC, INC.",-4142,{"$f":"'[1]Construction Worksheet'!G358","v":17488927.600000001},"M",8,{"$f":"FETCHCOMMENT(E75)","v":"12-0R3134\n11-056404\n08-1K4004\n12-0K91U4\n09-374704\n09-379104\n06-0W79U4\n06-1F1804"},8,{"$f":"FETCHCOMMENT(G75)","v":"PETERSON-CHASE GENERAL ENGINEERING CONSTRUCTION, INC.\nHAZARD CONSTRUCTION COMPANY\nBEADOR CONSTRUCTION COMPANY, INC.\nGRANITE CONSTRUCTION COMPANY\nPAPICH CONSTRUCTION COMPANY INC\nROAD AND HIGHWAY BUILDERS LLC\nSECURITY PAVING COMPANY, INC.\nGRIFFITH COMPANY"},"6,8,9,11,12"]
["IN-LINE FENCE & RAILING",-4142,{"$f":"'[1]Construction Worksheet'!G364","v":474725},"M",1,{"$f":"FETCHCOMMENT(E76)","v":"12-0K91U4"},1,{"$f":"FETCHCOMMENT(G76)","v":"GRANITE CONSTRUCTION COMPANY"},12]
["INLAND GARDENS AND TROPICS",-4142,{"$f":"'[1]Construction Worksheet'!C145","v":118287.73},"F",1,{"$f":"FETCHCOMMENT(E77)","v":"08-1K4004"},1,{"$f":"FETCHCOMMENT(G77)","v":"BEADOR CONSTRUCTION COMPANY, INC."},8]
["J. PEREZ TRANSPORT",43,{"$f":"'[1]Construction Worksheet'!G370","v":1174250},"M",1,{"$f":"FETCHCOMMENT(E78)","v":"09-379104"},1,{"$f":"FETCHCOMMENT(G78)","v":"ROAD AND HIGHWAY BUILDERS"},9]
["JEFFERSON STATE HIGHWAYS INC",-4142,{"$f":"'[1]Construction Worksheet'!G406","v":5509019.8400000008},"M",24,{"$f":"FETCHCOMMENT(E79)","v":"03-4H8704\n03-0J01U4\n02-3H6904\n01-0F7104\n01-0J8904\n02-0K6404\n02-4H03U4\n02-1J75U4\n02-4H0104\n02-4H0704\n03-3H8304\n04-2Q8004\n04-2Q5504\n04-2Q6504\n07-347904\n07-369704\n09-366804\n01-0K8904\n04-2K3604\n05-1G9504\n03-0J5604\n04-2Q5204\n04-1Q7214\n03-4J1204"},14,{"$f":"FETCHCOMMENT(G79)","v":"O.C. JONES & SONS INC\nMERCER-FRASER COMPANY\nJEFFERSON STATE HIGHWAYS, INC.\nGHILOTTI CONSTRUCTION COMPANY INC\nMCCUEN CONSTRUCTION INC\nHAT CREEK CONSTRUCTION MATERIALS\nPACIFIC INFRASTRUCTURE CONSTRUCTION, LLC\nGORDON N. BALL, INC.\nBAY CITIES PAVING & GRADING INC\nRASMUSSEN/VANGUARD\nC. A. RASMUSSEN, INC.\nPAPICH CONSTRUCTION COMPANY\nGRANITE CONSTRUCTION COMPANY\nGHILOTTI BROS., INC."},"1,2,3,4,7,9"]
["JFL ELECTRIC",-4142,{"$f":"'[1]Construction Worksheet'!G416","v":26008815},"M",6,{"$f":"FETCHCOMMENT(E80)","v":"08-1K6904\n07-332304\n07-346804\n12-0R32U4\n07-348204\n07-350324"},5,{"$f":"FETCHCOMMENT(G80)","v":"GRANITE CONSTRUCTION COMPANY\nTORO ENTERPRISES INC\nR.J. NOBLE COMPANY\nBOSCO CONSTRUCTORS, INC.\nJFL ELECTRIC, INC."},"7,8,12"]
["JUNIOR SWEEPING COMPANY LLC",43,{"$f":"'[1]Construction Worksheet'!G424","v":117720},"M",3,{"$f":"FETCHCOMMENT(E81)","v":"01-0F7104\n05-1K6404\n10-1H7004"},3,{"$f":"FETCHCOMMENT(G81)","v":"GHILOTTI CONSTRUCTION COMPANY, INC.\nGRANITE CONSTRUCTION COMPANY\nGEORGE REED, INC."},"1,5,10"]
["LA FIRMA INC",-4142,{"$f":"'[1]Construction Worksheet'!G449","v":3750},"M",1,{"$f":"FETCHCOMMENT(E82)","v":"07-370404"},1,{"$f":"FETCHCOMMENT(G82)","v":"GRIFFITH COMPANY"},7]
["LA STEEL SERVICES, INC.",-4142,{"$f":"'[1]Construction Worksheet'!G455","v":658838.19999999995},"M",2,{"$f":"FETCHCOMMENT(E83)","v":"08-1K6904\n08-0G8504"},1,{"$f":"FETCHCOMMENT(G83)","v":"GRANITE CONSTRUCTION COMPANY\n"},8]
["LASER BRIDGE INDUSTRIAL",33,{"$f":"'[1]Construction Worksheet'!G464","v":60070.51},"M",1,{"$f":"FETCHCOMMENT(E84)","v":"12-0K8704"},1,{"$f":"FETCHCOMMENT(G84)","v":"ORTIZ ENTERPRISES INC"},12]
["LIZ TRANSPORT",43,{"$f":"'[1]Construction Worksheet'!C151","v":313556},"F",1,{"$f":"FETCHCOMMENT(E85)","v":"07-348204"},1,{"$f":"FETCHCOMMENT(G85)","v":"BOSCO CONSTRUCTORS, INC."},7]
["LOGISTICAL ENTERPRISES",33,{"$f":"'[1]Construction Worksheet'!C169","v":3575861.76},"F",11,{"$f":"FETCHCOMMENT(E86)","v":"03-4H8704\n03-0J01U4\n04-0K1004\n12-0S1404\n04-3J2604\n04-0K8004\n07-348204\n10-1H7004\n04-1W0904\n04-1Q7214\n03-4J1204"},9,{"$f":"FETCHCOMMENT(G86)","v":"O.C. JONES & SONS INC\n MERCER-FRASER COMPANY\nMIKE BROWN ELECTRIC CO.\nCHUMO CONSTRUCTION INC\nGHILOTTI BROS INC\nBOSCO CONSTRUCTORS, INC.\nGEORGE REED, INC.\nCROSSTOWN ELECTRICAL & DATA, INC.\nBAY CITIES PAVING & GRADING, INC."},"3,4,10,12"]
["LONE STAR LANDSCAPE",-4142,{"$f":"'[1]Construction Worksheet'!G479","v":1927725},"M",10,{"$f":"FETCHCOMMENT(E87)","v":"04-0P9204\n04-0P7604\n05-1H6504\n05-1K6404\n04-0K8004\n04-3Q8504\n04-4G7804\n04-0Q2004\n05-1G9504\n04-1W0904"},8,{"$f":"FETCHCOMMENT(G87)","v":"MYERS & SONS CONSTRUCTION, LLC.\nST. FRANCIS ELECTRIC, LLC.\nGRANITE CONSTRUCTION COMPANY\nGHILOTTI BROS INC\nTENNYSON ELECTRIC INC\nO.C. JONES & SONS, INC.\nGORDON N BALL INC\nCROSSTOWN ELECTRICAL & DATA, INC."},"4,5"]
["LOS MORALES TRUCKING, INC.",43,{"$f":"'[1]Construction Worksheet'!G489","v":972300},"M",4,{"$f":"FETCHCOMMENT(E88)","v":"08-1K4004\n08-1M7404\n08-1J3104\n07-319604"},2,{"$f":"FETCHCOMMENT(G88)","v":"BEADOR CONSTRUCTION COMPANY, INC.\nINTERSTATE CIVIL CONSTRUCTION"},"7,8"]
["LS TRUCKING INC",43,{"$f":"'[1]Construction Worksheet'!G435","v":92070},"M",1,{"$f":"FETCHCOMMENT(E89)","v":"09-374504"},1,{"$f":"FETCHCOMMENT(G89)","v":"CALIFORNIA HIGHWAY CONSTRUCTION GROUP, INC."},9]
["M&S ENVIRONMENTAL",33,{"$f":"'[1]Construction Worksheet'!G502","v":3024216.45},"M",6,{"$f":"FETCHCOMMENT(E90)","v":"02-3H6904\n01-0J8904\n02-0K6404\n01-0J2104\n01-0H6504\n02-0J8504"},5,{"$f":"FETCHCOMMENT(G90)","v":"DIG IT CONSTRUCTION, INC.\nMERCER FRASER COMPANY\nMCCUEN CONSTRUCTION\nWAHLUND CONSTRUCTION, INC.\nTULLIS INC"},"1,2"]
["MADERA CONCRETE COMPANY",-4142,{"$f":"'[1]Construction Worksheet'!G508","v":333786},"M",2,{"$f":"FETCHCOMMENT(E91)","v":"06-487404\n10-1L8704"},1,{"$f":"FETCHCOMMENT(G91)","v":"GRANITE CONSTRUCTION COMPANY"},"6,10"]
["MANERI TRAFFIC CONTROL",33,{"$f":"'[1]Construction Worksheet'!C207","v":37342451.219999991},"F",28,{"$f":"FETCHCOMMENT(E92)","v":"11-430384\n12-0S1404\n07-333604\n08-1J6104\n07-358404\n08-1J3004\n08-1J2704\n08-1J7204\n08-1K4004\n12-0R3154\n12-0R57U4\n12-0S7004\n08-1K6904\n07-370404\n12-0R32U4\n07-347904\n07-350314\n07-350334\n07-351704\n08-1J4504\n07-346304\n07-369704\n08-0G8504\n12-0K8704\n12-0U9104\n07-346504\n08-1C07U4"},17,{"$f":"FETCHCOMMENT(G92)","v":"HAZARD CONSTRUCTION ENGR, LLC\nCHUMO CONSTRUCTION INC\nSULLY-MILLER CONTRACTING COMPANY\nFBD VANGUARD CONSTRUCTION, INC.\nYAKAR\nBEADOR CONSTRUCTION COMPANY, INC.\nPOWELL CONSTRUCTORS, INC.\nSECURITY PAVING COMPANY, INC.\nAUTOBAHN CONSTRUCTION, INC.\nGRANITE CONSTRUCTION COMPANY\nGRIFFITH COMPANY \nR.J. NOBLE COMPANY\nRASMUSSEN/VANGUARD\nC. A. RASMUSSEN, INC.\nCROSSTOWN ELECTRICAL & DATA, INC.\nALL AMERICAN ASPHALT\nORTIZ ENTERPRISES INC"},"7,8,11,12"]
["MAVERICK SWEEPING",43,{"$f":"'[1]Construction Worksheet'!C215","v":275744},"F",3,{"$f":"FETCHCOMMENT(E93)","v":"08-1K4004\n07-354704\n12-0K8704"},3,{"$f":"FETCHCOMMENT(G93)","v":"BEADOR CONSTRUCTION COMPANY, INC.\nCERTIFIED COATING COMPANY\nORTIZ ENTERPRISES INC"},"7,8,12"]
["MESA TRAFFIC SERVICES",-4142,{"$f":"'[1]Construction Worksheet'!G513","v":123250},"M",1,{"$f":"FETCHCOMMENT(E94)","v":"07-351704"},1,{"$f":"FETCHCOMMENT(G94)","v":"C. A. RASMUSSEN, INC."},7]
["MONZON & SON ENTERPRISES INC",43,{"$f":"'[1]Construction Worksheet'!G536","v":15278262.65},"M",13,{"$f":"FETCHCOMMENT(E95)","v":"11-430384\n12-0S1404\n07-333604\n08-1J6104\n12-0R3134\n08-1J2704\n08-1J7204\n12-0R57U4\n07-347904\n12-0R3114\n12-0K8704\n07-346304\n07-346504"},9,{"$f":"FETCHCOMMENT(G95)","v":"HAZARD CONSTRUCTION ENGR, LLC\nCHUMO CONSTRUCTION INC\nSULLY-MILLER CONTRACTING COMPANY\nFBD VANGUARD CONSTRUCTION, INC.\nPETERSON-CHASE GENERAL ENGINEERING CONSTRUCTION, INC.\nSECURITY PAVING COMPANY, INC.\nRASMUSSEN/VANGUARD\nBEADOR CONSTRUCTION COMPANY, INC.\nORTIZ ENTERPRISES INC"},"7,8,11,12"]
["MORAN CONSULTING",-4142,{"$f":"'[1]Construction Worksheet'!G542","v":94640},"M",1,{"$f":"FETCHCOMMENT(E96)","v":"07-333604"},1,{"$f":"FETCHCOMMENT(G96)","v":"SULLY-MILLER CONTRACTING COMPANY"},7]
["NOLD'S EQUIPMENT",33,{"$f":"'[1]Construction Worksheet'!C223","v":362808},"F",2,{"$f":"FETCHCOMMENT(E97)","v":"07-333604\n07-358404"},2,{"$f":"FETCHCOMMENT(G97)","v":"SULLY-MILLER CONTRACTING COMPANY\nYAKAR"},7]
["PRECISION GRADE, INC.",-4142,{"$f":"'[1]Construction Worksheet'!G548","v":3996411},"M",1,{"$f":"FETCHCOMMENT(E98)","v":"05-1H6914"},1,{"$f":"FETCHCOMMENT(G98)","v":"PRECISION GRADE, INC."},5]
["POLO ENGINEERING, INC.",-4142,{"$f":"'[1]Construction Worksheet'!C230","v":673013},"F",1,{"$f":"FETCHCOMMENT(E99)","v":"07-4P8504"},1,{"$f":"FETCHCOMMENT(G99)","v":"POLO ENGINEERING, INC."},7]
["PRE-CON PRODUCTS, LTD.",-4142,{"$f":"'[1]Construction Worksheet'!G563","v":746721.65999999992},"M",6,{"$f":"FETCHCOMMENT(E100)","v":"08-1K4004\n07-346804\n07-370404\n12-0R3114\n07-369704\n05-1H4404"},5,{"$f":"FETCHCOMMENT(G100)","v":"BEADOR CONSTRUCTION COMPANY, INC.\nTORO ENTERPRISES INC\nGRIFFITH COMPANY\nC. A. RASMUSSEN, INC.\nM.C.M. CONSTRUCTION INC"},"5,7,8,12"]
["PREMIER SIGN SERVICE INC",-4142,{"$f":"'[1]Construction Worksheet'!G575","v":11302433.039999999},"M",6,{"$f":"FETCHCOMMENT(E101)","v":"12-0R32U4\n07-347904\n07-348204\n12-0K8704\n08-1J5404\n06-0U2904"},6,{"$f":"FETCHCOMMENT(G101)","v":"R.J. NOBLE COMPANY\nRASMUSSEN/VANGUARD\nBOSCO CONSTRUCTORS, INC.\nORTIZ ENTERPRISES INC\nFLATIRON WEST, INC.\nGRIFFITH COMPANY"},"6,8,12"]
["PREMIER VALLEY TRANSPORT INC",43,{"$f":"'[1]Construction Worksheet'!G586","v":2214250},"M",4,{"$f":"FETCHCOMMENT(E102)","v":"05-1Q03U4\n09-374704\n05-1J8604\n06-0Y1704"},1,{"$f":"FETCHCOMMENT(G102)","v":"PAPICH CONSTRUCTION COMPANY, INC."},"5,6,9"]
["PTM GENERAL ENGINEERING",-4142,{"$f":"'[1]Construction Worksheet'!C237","v":1264843},"F",3,{"$f":"FETCHCOMMENT(E103)","v":"07-4P8504\n05-1K5104\n12-0U9204"},2,{"$f":"FETCHCOMMENT(G103)","v":"PTM GENERAL ENGINEERING SERVICES, INC.\nCENTRAL COAST FINANCIAL GROUP, INC. DBA CCFG CONSTRUCTION"},"5,7,12"]
["QA CONSTRUCTORS",-4142,{"$f":"'[1]Construction Worksheet'!G594","v":1585280},"M",3,{"$f":"FETCHCOMMENT(E104)","v":"04-0P9204\n04-0P7604\n04-0P9304"},3,{"$f":"FETCHCOMMENT(G104)","v":"MYERS & SONS CONSTRUCTION, LLC.\nST. FRANCIS ELECTRIC, LLC.\nBUGLER CONSTRUCTION, INC."},4]
["QUALITY TRAFFIC CONTROL",-4142,{"$f":"'[1]Construction Worksheet'!G605","v":1221070.5},"M",5,{"$f":"FETCHCOMMENT(E105)","v":"11-056404\n12-0K91U4\n07-354704\n12-0R3114\n11-430194"},4,{"$f":"FETCHCOMMENT(G105)","v":"HAZARD CONSTRUCTION ENGR, LLC\nGRANITE CONSTRUCTION COMPANY\nCERTIFIED COATINGS COMPANY\nBEADOR CONSTRUCTION COMPANY, INC."},"7,11,12"]
["QUIMU CONTRACTING, INC.",-4142,{"$f":"'[1]Construction Worksheet'!G609","v":386080},"M",1,{"$f":"FETCHCOMMENT(E106)","v":"03-3J9104"},1,{"$f":"FETCHCOMMENT(G106)","v":"QUIMU CONTRACTING, INC."},3]
["RAC CONSTRUCTION",-4142,{"$f":"'[1]Construction Worksheet'!G616","v":119167.5},"M",1,{"$f":"FETCHCOMMENT(E107)","v":"11-430194\n"},1,{"$f":"FETCHCOMMENT(G107)","v":"HAZARD CONSTRUCTION COMPANY DBA HAZARD CONSRUCTION ENGR LLC"},11]
["RANGEL BROTHERS TRUCKING",43,{"$f":"'[1]Construction Worksheet'!G630","v":1541400},"M",1,{"$f":"FETCHCOMMENT(E108)","v":"07-370404"},1,{"$f":"FETCHCOMMENT(G108)","v":"GRIFFITH COMPANY"},7]
["RE CHAFFEE CONSTRUCTION, INC.",-4142,{"$f":"'[1]Construction Worksheet'!G637","v":690583},"M",3,{"$f":"FETCHCOMMENT(E109)","v":"08-1M7404\n08-1M0404\n08-1J3104"},1,{"$f":"FETCHCOMMENT(G109)","v":"INTERSTATE CIVIL CONSTRUCTION"},8]
["REYCON CONSTRUCTION",-4142,{"$f":"'[1]Construction Worksheet'!G646","v":1314820},"M",1,{"$f":"FETCHCOMMENT(E110)","v":"08-0G8504"},1,{"$f":"FETCHCOMMENT(G110)","v":"GRANITE CONSTRUCTION COMPANY"},8]
["REYNAGA TRANSPORTATION",43,{"$f":"'[1]Construction Worksheet'!G654","v":2042160},"M",3,{"$f":"FETCHCOMMENT(E111)","v":"07-333604\n08-1J6104\n07-347904"},3,{"$f":"FETCHCOMMENT(G111)","v":"SULLY-MILLER CONTRACTING COMPANY\nFBD VANGUARD CONSTRUCTION, INC.\nRASMUSSEN/VANGUARD"},"7,8"]
["R.M.C. TRUCKING",43,{"$f":"'[1]Construction Worksheet'!G660","v":114500},"M",1,{"$f":"FETCHCOMMENT(E112)","v":"08-1J7204"},1,{"$f":"FETCHCOMMENT(G112)","v":"SULLY-MILLER CONTRACTING COMPANY"},8]
["ROBINSON SWEEPING INC",43,{"$f":"'[1]Construction Worksheet'!C261","v":385200},"F",4,{"$f":"FETCHCOMMENT(E113)","v":"03-0J01U4\n01-0J8904\n01-0J2104\n03-0J5604"},1,{"$f":"FETCHCOMMENT(G113)","v":"MERCER-FRASER COMPANY"},"1,3"]
["RUPERT CONSTRUCTION SUPPLY",33,{"$f":"'[1]Construction Worksheet'!G687","v":2096967.3199999998},"M",18,{"$f":"FETCHCOMMENT(E114)","v":"11-430384\n05-1J7804\n08-1J6104\n04-3J2604\n01-0H6404\n02-1J75U4\n04-2Q8004\n06-487404\n08-1K4004\n12-0K91U4\n04-0K8004\n09-374704\n07-347904\n05-1G9504\n07-346104\n01-0K9504\n05-1H4704\n07-319604\n09-374504"},14,{"$f":"FETCHCOMMENT(G114)","v":"HAZARD CONSTRUCTION ENGR, LLC\nCALPORTLAND CONSTRUCTION\nFBD VANGUARD CONSTRUCTION, INC.\nO.C. JONES AND SONS\nWYLATTI RESOURCE MANAGEMENT, INC.\nHAT CREEK CONSTRUCTION & MATERIALS, INC.\nGORDON N. BALL, INC.\nGRANITE CONSTRUCTION COMPANY\nBEADOR CONSTRUCTION COMPANY, INC.\nGHILOTTI BROS INC\nPAPICH CONSTRUCTION COMPANY INC\nRASMUSSEN/VANGUARD\nPOWELL CONSTRUCTORS, INC.\nCALIFORNIA HIGHWAY CONSTRUCTION"},"1,2,4,5,6,7,8,9,11,12"]
["S&S TRUCKING",43,{"$f":"'[1]Construction Worksheet'!G694","v":1417802},"M",3,{"$f":"FETCHCOMMENT(E115)","v":"04-3J2604\n04-2Q5504\n04-0G3604"},2,{"$f":"FETCHCOMMENT(G115)","v":"O.C. JONES & SONS, INC.\nBAY CITIES PAVING & GRADING INC"},4]
["SAFEWAY SIGN COMPANY",-4142,{"$f":"'[1]Construction Worksheet'!G712","v":2018549.22},"M",12,{"$f":"FETCHCOMMENT(E116)","v":"11-430384\n08-1K4004\n12-0R3154\n07-347904\n08-1J4504\n12-0R3114\n07-346304\n11-430194\n02-2J2204\n07-346504\n02-0J8504\n07-319604"},7,{"$f":"FETCHCOMMENT(G116)","v":"HAZARD CONSTRUCTION ENGR, LLC\nBEADOR CONSTRUCTION COMPANY, INC.\nPOWELL CONSTRUCTORS, INC.\nCHUMO CONSTRUCTION, INC.\nHIGHWAY SPECIALTY COMPANY, INC.\nSECURITY PAVING COMPANY, INC.\nTULLIS INC"},"2,7,11"]
["SAWMAN CONCRETE CUTTING, INC.",-4142,{"$f":"'[1]Construction Worksheet'!G716","v":688867.2},"M",1,{"$f":"FETCHCOMMENT(E117)","v":"07-347904"},1,{"$f":"FETCHCOMMENT(G117)","v":"RASMUSSEN/VANGUARD"},7]
["SHARPLINE SOLUTIONS, INC.",-4142,{"$f":"'[1]Construction Worksheet'!G720","v":30415.09},"M",1,{"$f":"FETCHCOMMENT(E118)","v":"07-351704"},1,{"$f":"FETCHCOMMENT(G118)","v":"C. A. RASMUSSEN, INC."},7]
["SHIELD RENTALS & SALES LLC",-4142,{"$f":"'[1]Construction Worksheet'!G726","v":219300},"M",2,{"$f":"FETCHCOMMENT(E119)","v":"04-2Q8004\n04-0Q2004"},2,{"$f":"FETCHCOMMENT(G119)","v":"GORDON N. BALL, INC.\nGHILOTTI BROS., INC."},4]
["SOCAL WELDING",-4142,{"$f":"'[1]Construction Worksheet'!G730","v":337930.25},"M",1,{"$f":"FETCHCOMMENT(E120)","v":"04-2Q8004"},1,{"$f":"FETCHCOMMENT(G120)","v":"GORDON N. BALL, INC."},4]
["SWPPQUEEN",-4142,{"$f":"'[1]Construction Worksheet'!C269","v":50515},"F",3,{"$f":"FETCHCOMMENT(E121)","v":"04-0P7604\n09-374504\n03-4J1204"},3,{"$f":"FETCHCOMMENT(G121)","v":"ST. FRANCIS ELECTRIC, LLC.\nCALIFORNIA HIGHWAY CONSTRUCTION GROUP, INC.\nBAY CITIES PAVING & GRADING, INC."},"3,4,9"]
["T.D.W. CONSTRUCTION",-4142,{"$f":"'[1]Construction Worksheet'!G741","v":725797.41},"M",1,{"$f":"FETCHCOMMENT(E122)","v":"09-374504\n"},1,{"$f":"FETCHCOMMENT(G122)","v":"CALIFORNIA HIGHWAY CONSTRUCTION"},9]
["TERRA WEST ",-4142,{"$f":"'[1]Construction Worksheet'!G762","v":6325},"M",3,{"$f":"FETCHCOMMENT(E123)","v":"11-430384\n11-056404\n11-430194"},1,{"$f":"FETCHCOMMENT(G123)","v":"HAZARD CONSTRUCTION ENGR, LLC"},11]
["TESORO CONSTRACTORS",-4142,{"$f":"'[1]Construction Worksheet'!G769","v":1149665},"M",2,{"$f":"FETCHCOMMENT(E124)","v":"11-430194\n07-348504\n"},2,{"$f":"FETCHCOMMENT(G124)","v":"HAZARD CONSTRUCTION COMPANY DBA HAZARD CONSRUCTION ENGR LLC\nYAKAR"},"7,11"]
["TOTAL BARRICADE SERVICE INC",-4142,{"$f":"'[1]Construction Worksheet'!G780","v":647240},"M",1,{"$f":"FETCHCOMMENT(E125)","v":"07-346804"},1,{"$f":"FETCHCOMMENT(G125)","v":"TORO ENTERPRISES INC"},7]
["TOTAL SITE SUPPLY COMPANY",33,{"$f":"'[1]Construction Worksheet'!G786","v":80250.7},"M",2,{"$f":"FETCHCOMMENT(E126)","v":"08-1K4004\n04-1Q7214"},2,{"$f":"FETCHCOMMENT(G126)","v":"BEADOR CONSTRUCTION COMPANY, INC.\nBAY CITIES PAVING & GRADING INC"},"4,8"]
["TR DIGITAL, INC.",-4142,{"$f":"'[1]Construction Worksheet'!G794","v":4332919.25},"M",2,{"$f":"FETCHCOMMENT(E127)","v":"04-2Q8004\n04-1Q7214"},2,{"$f":"FETCHCOMMENT(G127)","v":"GORDON N. BALL, INC.\nBAY CITIES PAVING & GRADING, INC."},4]
["TRANSPACIFIC STEEL LLC",-4142,{"$f":"'[1]Construction Worksheet'!G812","v":9362284.9600000009},"M",8,{"$f":"FETCHCOMMENT(E128)","v":"05-1J7804\n04-2Q8004\n05-1K4504\n06-487404\n05-1J8604\n06-0W79U4\n05-1H4404\n07-319604"},8,{"$f":"FETCHCOMMENT(G128)","v":"CALPORTLAND CONSTRUCTION\nGORDON N. BALL, INC.\nGRANITE CONSTRUCTION COMPANY\nPAPICH CONSTRUCTION COMPANY, INC.\nFLATIRON WEST, INC.\nSECURITY PAVING COMPANY, INC.\nMCM CONSTRUCTION INC\nBEADOR CONSTRUCTION COMPANY INC"},"5,6,7"]
["TREESMITH ENTERPRISES",-4142,{"$f":"'[1]Construction Worksheet'!C313","v":858000},"F",1,{"$f":"FETCHCOMMENT(E129)","v":"08-1K6904"},1,{"$f":"FETCHCOMMENT(G129)","v":"GRANITE CONSTRUCTION COMPANY"},8]
["TULLY INC",-4142,{"$f":"'[1]Construction Worksheet'!C307","v":1042984.98},"F",24,{"$f":"FETCHCOMMENT(E130)","v":"03-4H8704\n04-1Q2004\n10-0Q2104\n01-0F7104\n04-0K6404\n04-3J2604\n01-0H6404\n03-3H8304\n04-2Q8004\n06-487404\n10-1L2804\n04-4G7804\n04-0Q2004\n01-0K8904\n04-2K3604\n10-1H7004\n05-1G9504\n02-2J2204\n03-0J5604\n01-0H6504\n03-3J9004\n06-0U2904\n01-0K9504\n05-1H4704"},15,{"$f":"FETCHCOMMENT(G130)","v":"O.C. JONES & SONS INC\nCOLUMBIA ELECTRIC, INC.\nBAY CITIES PAVING & GRADING, INC.\nGHILOTTI CONSTRUCTION COMPANY, INC.\nWYLATTI RESOURCE MANAGEMENT, INC.\nPACIFIC INFRASTRUCTURE CONSTRUCTION, LLC\nGORDON N. BALL, INC.\nGRANITE CONSTRUCTION COMPANY\nGHILOTTI BROS., INC.\nGEORGE REED, INC.\nHIGHWAY SPECIALTY COMPANY, INC.\nWAHLUND CONSTRUCTION, INC.\nMERCER-FRASER COMPANY\nPACIFIC INFRASTRUCTURE\nGRIFFITH COMPANY"},"1,2,3,4,5,6,10"]
["UNITED SWEEPING",43,{"$f":"'[1]Construction Worksheet'!G830","v":97200},"M",2,{"$f":"FETCHCOMMENT(E131)","v":"10-1K8404\n01-0K9504"},2,{"$f":"FETCHCOMMENT(G131)","v":"MOUNTAIN CASCADE INC\nGRANITE CONSTRUCTION COMPANY"},"1,10"]
["UNIVERSAL CONCRETE CONSTRUCTION",-4142,{"$f":"'[1]Construction Worksheet'!G822","v":1129682},"M",1,{"$f":"FETCHCOMMENT(E132)","v":"08-0G8504"},1,{"$f":"FETCHCOMMENT(G132)","v":"GRANITE CONSTRUCTION COMPANY"},8]
["V3 CONSTRCTION, INC.",-4142,{"$f":"'[1]Construction Worksheet'!G841","v":3996938.2},"M",1,{"$f":"FETCHCOMMENT(E133)","v":"08-1K6904"},1,{"$f":"FETCHCOMMENT(G133)","v":"GRANITE CONSTRUCTION COMPANY"},8]
["VALDIVIA TRUCKING",43,{"$f":"'[1]Construction Worksheet'!G849","v":335050},"M",1,{"$f":"FETCHCOMMENT(E134)","v":"04-4G7804"},1,{"$f":"FETCHCOMMENT(G134)","v":"O.C. JONES & SONS, INC."},4]
["VELARDE CONSTRUCTION",-4142,{"$f":"'[1]Construction Worksheet'!G856","v":957173.96},"M",1,{"$f":"FETCHCOMMENT(E135)","v":"08-1J5404"},1,{"$f":"FETCHCOMMENT(G135)","v":"FLATIRON WEST, INC."},8]
["VINTAGE PAVING COMPANY",-4142,{"$f":"'[1]Construction Worksheet'!G864","v":709836},"M",1,{"$f":"FETCHCOMMENT(E136)","v":"10-0X7404"},1,{"$f":"FETCHCOMMENT(G136)","v":"STEELHEAD CONSTRUCTORS JV"},10]
["WCW INC.",-4142,{"$f":"'[1]Construction Worksheet'!G881","v":5689809.4500000002},"M",3,{"$f":"FETCHCOMMENT(E137)","v":"04-2Q8004\n07-369704\n05-1H4404"},2,{"$f":"FETCHCOMMENT(G137)","v":"GORDON N. BALL, INC.\nC. A. RASMUSSEN, INC."},"4,5,7"]
["WEST PACIFIC CONCRETE",-4142,{"$f":"'[1]Construction Worksheet'!G885","v":102378.03},"M",1,{"$f":"FETCHCOMMENT(E138)","v":"08-1J2704"},1,{"$f":"FETCHCOMMENT(G138)","v":"SULLY-MILLER CONTRACTING COMPANY"},8]
["WESTERN TRAFFIC SUPPLY, INC.",33,{"$f":"'[1]Construction Worksheet'!G903","v":11809177},"M",12,{"$f":"FETCHCOMMENT(E139)","v":"04-2Q6104\n04-2K7404\n04-0P7604\n04-2Q5504\n04-3Q8504\n04-2Q6504\n04-1W0904\n04-0AA624\n04-2Q5204\n03-3J9004\n04-0G3604\n04-1Q7214"},7,{"$f":"FETCHCOMMENT(G139)","v":"GRANITE ROCK COMPANY\nBAY CITIES PAVING & GRADING INC\nST. FRANCIS ELECTRIC, LLC.\nTENNYSON ELECTRIC LLC\nCROSSTOWN ELECTRICAL & DATA, INC.\nPACIFIC INFRASTRUCTURE INC\nBAY CITIES PAVING AND GRADING"},"3,4"]
["YMD MATERIAL BROKER",43,{"$f":"'[1]Construction Worksheet'!C319","v":240000},"F",1,{"$f":"FETCHCOMMENT(E140)","v":"08-1J7204"},1,{"$f":"FETCHCOMMENT(G140)","v":"SULLY-MILLER CONTRACTING COMPANY"},8]
["ZABEL ENTERPRISES",43,{"$f":"'[1]Construction Worksheet'!G912","v":970500},"M",2,{"$f":"FETCHCOMMENT(E141)","v":"01-0J8904\n01-0J2104"},1,{"$f":"FETCHCOMMENT(G141)","v":"MERCER-FRASER COMPANY"},4]
[null,null,null,null,null,{"$f":"FETCHCOMMENT(E142)","v":""},null,{"$f":"FETCHCOMMENT(G142)","v":""}]
[null,null,null,null,null,{"$f":"FETCHCOMMENT(E143)","v":""},null,{"$f":"FETCHCOMMENT(G143)","v":""}]
[null,null,null,null,null,{"$f":"FETCHCOMMENT(E144)","v":""},null,{"$f":"FETCHCOMMENT(G144)","v":""}]
[]
["Native American","Column1","Dollars","M/F","# of Contracts","Contract #","# of Primes","Prime Name","Districts"]
["CREST EQUIPMENT",-4142,{"$f":"'[1]Construction Worksheet'!K10","v":534100},"F",2,{"$f":"FETCHCOMMENT(E147)","v":"11-056404\n11-430194"},2,{"$f":"FETCHCOMMENT(G147)","v":"O.C. JONES & SONS, INC.\nHAZARD CONSTRUCTION COMPANY DBA HAZARD CONSRUCTION ENGR LLC"},11]
["DISABLED AMERICAN VETERAN ENTERPRISES TRUCKING & SWEEPING",33,{"$f":"'[1]Construction Worksheet'!O15","v":1049632},"M",1,{"$f":"FETCHCOMMENT(E148)","v":"06-0W79U4"},1,{"$f":"FETCHCOMMENT(G148)","v":"SECURITY PAVING COMPANY, INC."},6]
["FORCE TRAFFIC CONTROL",-4142,{"$f":"'[1]Construction Worksheet'!O21","v":150000},"M",1,{"$f":"FETCHCOMMENT(E149)","v":"10-1H7004"},1,{"$f":"FETCHCOMMENT(G149)","v":"GEORGE REED, INC."},10]
["GLOBAL TRANSLOADING",-4142,{"$f":"'[1]Construction Worksheet'!K16","v":165857},"F",1,{"$f":"FETCHCOMMENT(E150)","v":"07-346104"},1,{"$f":"FETCHCOMMENT(G150)","v":"POWELL CONSTRUCTORS, INC."},7]
["G R SUNDBERG, INC.",-4142,{"$f":"'[1]Construction Worksheet'!O38","v":7546784.25},"M",6,{"$f":"FETCHCOMMENT(E151)","v":"01-0K4104\n01-0J8904\n01-0K9404\n06-487404\n04-0K8004\n04-2K3604"},4,{"$f":"FETCHCOMMENT(G151)","v":"G R SUNDBERG, INC.\nMERCER-FRASER COMPANY\nWYLATTI RESOURCE MANAGEMENT, INC.\nGHILOTTI BROS INC"},"1,4"]
["HUFFORD CONSTRUCTION",-4142,{"$f":"'[1]Construction Worksheet'!O45","v":520000},"M",1,{"$f":"FETCHCOMMENT(E152)","v":"01-0H6504"},1,{"$f":"FETCHCOMMENT(G152)","v":"WAHLUND CONSTRUCTION, INC."},1]
["KRC SAFETY CO INC",33,{"$f":"'[1]Construction Worksheet'!O60","v":2481589},"M",8,{"$f":"FETCHCOMMENT(E153)","v":"05-1J7804\n06-0X2504\n05-1Q03U4\n05-1K4504\n05-1K5104\n05-1K6404\n06-487404\n06-0Y1704"},4,{"$f":"FETCHCOMMENT(G153)","v":"CALPORTLAND CONSTRUCTION\nPAPICH CONSTRUCTION COMPANY, INC.\nGRANITE CONSTRUCTION COMPANY\nCENTRAL COAST FINANCIAL GROUP, INC. DBA CCFG CONSTRUCTION"},"5,6"]
["SAM'S EQUIPMENT & SUPPLIES",33,{"$f":"'[1]Construction Worksheet'!O70","v":236621.79},"M",3,{"$f":"FETCHCOMMENT(E154)","v":"09-387704\n10-1L8704\n06-0Y1704"},3,{"$f":"FETCHCOMMENT(G154)","v":"SB GENERAL ENGINEERING INC\nGRANITE CONSTRUCTION COMPANY\nPAPICH CONSTRUCTION COMPANY, INC."},"6,9,10"]
["SPIRIT ROAD OILS",33,{"$f":"'[1]Construction Worksheet'!K35","v":579728},"F",3,{"$f":"FETCHCOMMENT(E155)","v":"04-2Q6104\n04-0K6404\n04-0AA624"},2,{"$f":"FETCHCOMMENT(G155)","v":"GRANITE ROCK COMPANY\nHAZARD CONSTRUCTION ENGR, LLC"},4]
["SPURS TRUCKING AND EQUIPMENT, INC.",43,{"$f":"'[1]Construction Worksheet'!K42","v":52200},"F",1,{"$f":"FETCHCOMMENT(E156)","v":"02-4H0604"},1,{"$f":"FETCHCOMMENT(G156)","v":"HAT CREEK CONSTRUCTION & MATERIALS, INC."},2]
["S.T. RHOADES CONSTRUCTION",-4142,{"$f":"'[1]Construction Worksheet'!O85","v":3303725.65},"M",8,{"$f":"FETCHCOMMENT(E157)","v":"02-4H0604\n02-4H03U4\n03-2J5904\n02-4H0104\n02-4H0704\n03-1H1404\n01-0J2104\n02-0J8504"},5,{"$f":"FETCHCOMMENT(G157)","v":"HAT CREEK CONSTRUCTION & MATERIALS, INC.\nSTUDEBAKER ELECTRIC, INC.\nMARTIN BROTHERS CONSTRUCTION\nMERCER-FRASER COMPANY\nTULLIS INC\n"},"1,2,3"]
["WEST COAST DRILLING",-4142,{"$f":"'[1]Construction Worksheet'!K49","v":6544740.1500000004},"F",2,{"$f":"FETCHCOMMENT(E158)","v":"06-487404\n09-366804"},2,{"$f":"FETCHCOMMENT(G158)","v":"GRANITE CONSTRUCTION COMPANY\nPAPICH CONSTRUCTION COMPANY"},"6,9"]
[null,null,null,null,null,{"$f":"FETCHCOMMENT(E159)","v":""},null,{"$f":"FETCHCOMMENT(G159)","v":""}]
[null,null,null,null,null,{"$f":"FETCHCOMMENT(E160)","v":""},null,{"$f":"FETCHCOMMENT(G160)","v":""}]
[]
["African American","Column1","Dollars","M/F","# of Contracts","Contract #","# of Primes","Prime Name","Districts"]
["ALLUVION BIOLOGICAL CONSULTING",-4142,{"$f":"'[1]Construction Worksheet'!W10","v":160600},"M",2,{"$f":"FETCHCOMMENT(E163)","v":"10-0Q2104\n01-0J8904\n"},2,{"$f":"FETCHCOMMENT(G163)","v":"BAY CITIES PAVING & GRADING, INC.\nMERCER-FRASER COMPANY"},"1,10"]
["AMERICAN TRAFFIC BARRICADE & SAFETY CO",-4142,{"$f":"'[1]Construction Worksheet'!W19","v":23776.799999999999},"M",1,{"$f":"FETCHCOMMENT(E164)","v":"09-387704"},1,{"$f":"FETCHCOMMENT(G164)","v":"SB GENERAL ENGINEERING INC"},9]
["APPIAN UDBE SWPPPS",-4142,{"$f":"'[1]Construction Worksheet'!S8","v":750},"F",1,{"$f":"FETCHCOMMENT(E165)","v":"05-1K6404"},1,{"$f":"FETCHCOMMENT(G165)","v":"GRANITE CONSTRUCTION COMPANY"},5]
["BARYEH CONSTRUCTION ENGINEERS",-4142,{"$f":"'[1]Construction Worksheet'!W27","v":666260},"M",1,{"$f":"FETCHCOMMENT(E166)","v":"07-346804"},1,{"$f":"FETCHCOMMENT(G166)","v":"TORO ENTERPRISES INC"},7]
["BLACK DIAMOND ASPHALT INC",33,{"$f":"'[1]Construction Worksheet'!S24","v":7244363.4799999995},"F",11,{"$f":"FETCHCOMMENT(E167)","v":"03-0J01U4\n03-4H8704\n01-0J8904\n10-1L2804\n04-2Q5504\n10-1J8204\n02-3H6904\n01-0H6004\n10-0Q2104\n01-0J2104\n03-4J1204"},6,{"$f":"FETCHCOMMENT(G167)","v":"MERCER-FRASER COMPANY\nO.C. JONES & SONS, INC.\nBAY CITIES PAVING & GRADING INC\nGEORGE REED, INC.\nDIG IT CONSTRUCTION, INC.\nARGONAUT CONSTRUCTORS"},"1,3,4,10"]
["CGO CONSTRUCTION COMPANY",-4142,{"$f":"'[1]Construction Worksheet'!W35","v":599600},"M",3,{"$f":"FETCHCOMMENT(E168)","v":"08-1K4004\n11-430194\n12-0K8704"},3,{"$f":"FETCHCOMMENT(G168)","v":"BEADOR CONSTRUCTION COMPANY, INC.\nHAZARD CONSTRUCTION COMPANY DBA HAZARD CONSRUCTION ENGR LLC\nORTIZ ENTERPRISES, INC."},"8,11,12"]
["DBE DIRECT, LLC",-4142,{"$f":"'[1]Construction Worksheet'!W49","v":1616500},"M",5,{"$f":"FETCHCOMMENT(E169)","v":"06-487404\n08-1K6904\n07-370404\n12-0K8704\n05-1H4404"},4,{"$f":"FETCHCOMMENT(G169)","v":"GRANITE CONSTRUCTION COMPANY\nGRIFFITH COMPANY\nORTIZ ENTERPRISES, INC.\nMCM CONSTRUCTION COMPANY"},"5,6,7,8,12"]
["DEPENDABLE PETROLEUM",33,{"$f":"'[1]Construction Worksheet'!W62","v":4025843.7},"M",8,{"$f":"FETCHCOMMENT(E170)","v":"07-4X9704\n08-1J4504\n07-347904\n12-0R3114\n07-346304\n08-0G8504\n01-0K8904\n10-1H7004"},6,{"$f":"FETCHCOMMENT(G170)","v":"BEADOR CONSTRUCTION COMPANY, INC.\nALL AMERICAN ASPHALT\nRASMUSSEN/VANGUARD\nGRANITE CONSTRUCTION COMPANY\nCHUMO CONSTRUCTION, INC.\nGEORGE REED, INC."},"1,7,8,10,12"]
["DOUBLE G'S SUPPLY INC",33,{"$f":"'[1]Construction Worksheet'!S45","v":36206.660000000003},"F",1,{"$f":"FETCHCOMMENT(E171)","v":"11-430194\n"},1,{"$f":"FETCHCOMMENT(G171)","v":"HAZARD CONSTRUCTION COMPANY DBA HAZARD CONSRUCTION ENGR LLC"},11]
["DYNAMIC GENERATOR SERVICE INC.",-4142,{"$f":"'[1]Construction Worksheet'!W68","v":864025},"M",2,{"$f":"FETCHCOMMENT(E172)","v":"10-1J8204\n10-1N9004"},2,{"$f":"FETCHCOMMENT(G172)","v":"GEORGE REED, INC.\nFBD VANGUARD CONSTRUCTION, INC."},10]
["HYDRO2GEOTECH, LLC",-4142,{"$f":"'[1]Construction Worksheet'!W74","v":247100},"M",2,{"$f":"FETCHCOMMENT(E173)","v":"05-1H6504\n12-0K91U4"},1,{"$f":"FETCHCOMMENT(G173)","v":"GRANITE CONSTRUCTION COMPANY"},"5,12"]
["K&G CONCRETE PUMPING",-4142,{"$f":"'[1]Construction Worksheet'!W80","v":44195.6},"M",2,{"$f":"FETCHCOMMENT(E174)","v":"05-1K6404\n04-2Q8004"},2,{"$f":"FETCHCOMMENT(G174)","v":"GRANITE CONSTRUCTION COMPANY\nGORDON N. BALL, INC."},"4,5"]
["MARVELLA STEEL PLACERS",-4142,{"$f":"'[1]Construction Worksheet'!S54","v":486661.10000000003},"F",2,{"$f":"FETCHCOMMENT(E175)","v":"07-348204\n12-0R3114"},2,{"$f":"FETCHCOMMENT(G175)","v":"BOSCO CONSTRUCTORS, INC.\nBEADOR CONSTRUCTION COMPANY, INC."},"7,12"]
["SNLM LANDSCAPE",-4142,{"$f":"'[1]Construction Worksheet'!W86","v":328000},"M",2,{"$f":"FETCHCOMMENT(E176)","v":"12-0K91U4\n08-1M7404"},2,{"$f":"FETCHCOMMENT(G176)","v":"GRANITE CONSTRUCTION COMPANY\nINTERSTATE CIVIL CONSTRUCTION"},"8,12"]
["SYNERGY TRAFFIC CONTROL",-4142,{"$f":"'[1]Construction Worksheet'!W95","v":653325},"M",1,{"$f":"FETCHCOMMENT(E177)","v":"12-0R3134"},1,{"$f":"FETCHCOMMENT(G177)","v":"PETERSON-CHASE GENERAL ENGINEERING CONSTRUCTION, INC."},12]
["THE QUALITY FIRM, ACS, AC SERVICES",-4142,{"$f":"'[1]Construction Worksheet'!W105","v":986023.67999999993},"M",6,{"$f":"FETCHCOMMENT(E178)","v":"08-1J6104\n08-1J2704\n12-0K8704\n07-355204\n05-1H4404\n07-319604"},6,{"$f":"FETCHCOMMENT(G178)","v":"FBD VANGUARD CONSTRUCTION, INC.\nSULLY-MILLER CONTRACTING COMPANY\nORTIZ ENTERPRISES, INC.\nGRANITE CONSTRUCTION COMPANY\nM.C.M. CONSTRUCTION, INC.\nBEADOR CONSTRUCTION COMPANY, INC."},"5,7,8,12"]
["THOMPSON CONTRACTING ",-4142,{"$f":"'[1]Construction Worksheet'!W111","v":2688030},"M",3,{"$f":"FETCHCOMMENT(E179)","v":"01-0F7104\n02-0K6404\n04-1Q7214"},3,{"$f":"FETCHCOMMENT(G179)","v":"GHILOTTI CONSTRUCTION COMPANY, INC.\nMCCUEN CONSTRUCTION, INC.\nBAY CITIES PAVING & GRADING, INC."},"1,2,4"]
["TIPCO ENGINEERING, INC.",-4142,{"$f":"'[1]Construction Worksheet'!W117","v":2060770},"M",2,{"$f":"FETCHCOMMENT(E180)","v":"08-1K4004\n12-0K91U4"},2,{"$f":"FETCHCOMMENT(G180)","v":"BEADOR CONSTRUCTION COMPANY, INC.\nGRANITE CONSTRUCTION COMPANY"},"8,12"]
["TRU'S CONSTRUCTION AND TRAFFIC",-4142,{"$f":"'[1]Construction Worksheet'!S64","v":44880},"F",1,{"$f":"FETCHCOMMENT(E181)","v":"03-4J1204"},1,{"$f":"FETCHCOMMENT(G181)","v":"BAY CITIES PAVING & GRADING, INC."},3]
["ULTIMATE SECURITY SERVICES INC",-4142,{"$f":"'[1]Construction Worksheet'!W125","v":235200},"M",1,{"$f":"FETCHCOMMENT(E182)","v":"07-354704"},1,{"$f":"FETCHCOMMENT(G182)","v":"CERTIFIED COATINGS COMPANY"},7]
[null,null,null,null,null,{"$f":"FETCHCOMMENT(E183)","v":""},null,{"$f":"FETCHCOMMENT(G183)","v":""}]
[]
["Sub Cont Asian","Column1","Dollars","M/F","# of Contracts","Contract #","# of Primes","Prime Name","Districts"]
["5 AB TRANS, INC.",-4142,{"$f":"'[1]Construction Worksheet'!AE8","v":201560},"M",2,{"$f":"FETCHCOMMENT(E186)","v":"10-1H7004\n03-3J9004"},2,{"$f":"FETCHCOMMENT(G186)","v":"GRANITE CONSTRUCTION COMPANY\nPACIFIC INFRASTRUCTURE INC"},"1,3"]
["A1 TRUCKING SVS INC ",43,{"$f":"'[1]Construction Worksheet'!AE18","v":982657.44},"M",4,{"$f":"FETCHCOMMENT(E187)","v":"04-0P7604\n04-2Q8004\n05-1H6504\n05-1G9504"},3,{"$f":"FETCHCOMMENT(G187)","v":"ST. FRANCIS ELECTRIC, LLC.\nGORDON N. BALL, INC.\nGRANITE CONSTRUCTION COMPANY"},"4,5"]
["A1 TRUCKING SERVICES INC ",43,{"$f":"'[1]Construction Worksheet'!AE30","v":3120704},"M",4,{"$f":"FETCHCOMMENT(E188)","v":"04-1W0904\n04-0AA624\n04-0G3604\n05-1H4704"},4,{"$f":"FETCHCOMMENT(G188)","v":"CROSSTOWN ELECTRICAL & DATA INC\nGRANITE ROCK COMPANY\nBAY CITIES PAVING & GRADING, INC.\nGORDON N BALL INC"},"4,5"]
["AMERICA PACIFIC CONSTRUCTION",43,{"$f":"'[1]Construction Worksheet'!AE39","v":285426},"M",1,{"$f":"FETCHCOMMENT(E189)","v":"08-1P2804"},1,{"$f":"FETCHCOMMENT(G189)","v":"AMERICA PACIFIC CONSTRUCTION INC"},8]
["C.C. PRODUCTS, INC.",33,{"$f":"'[1]Construction Worksheet'!AE55","v":1396448},"M",1,{"$f":"FETCHCOMMENT(E190)","v":"12-0R3114"},1,{"$f":"FETCHCOMMENT(G190)","v":"BEADOR CONSTRUCTION COMPANY, INC."},12]
["CENTRAL TRUCKING, INC.",43,{"$f":"'[1]Construction Worksheet'!AE65","v":1104343.6000000001},"M",5,{"$f":"FETCHCOMMENT(E191)","v":"10-0Q2104\n10-1L8704\n10-1J8204\n10-1K8404\n10-0X7404"},5,{"$f":"FETCHCOMMENT(G191)","v":"BAY CITIES PAVING & GRADING, INC.\nGRANITE CONSTRUCTION COMPANY\nGEORGE REED, INC.\nMOUNTAIN CASCADE INC\nSTEELHEAD CONSTRUCTORS JV"},"9,10"]
["DESTINATION ANYWHERE, INC.",33,{"$f":"'[1]Construction Worksheet'!AE49","v":84000},"M",1,{"$f":"FETCHCOMMENT(E192)","v":"10-1L2804"},1,{"$f":"FETCHCOMMENT(G192)","v":"O.C. JONES & SONS, INC."},10]
["GEODE ENVIRONMENTAL",-4142,{"$f":"'[1]Construction Worksheet'!AA10","v":225500},"M",1,{"$f":"FETCHCOMMENT(E193)","v":"09-374704"},1,{"$f":"FETCHCOMMENT(G193)","v":"PAPICH CONSTRUCTION COMPANY"},9]
["JABI TRUCKING",43,{"$f":"'[1]Construction Worksheet'!AE74","v":3482110},"M",2,{"$f":"FETCHCOMMENT(E194)","v":"01-0H6004\n01-0H6404"},2,{"$f":"FETCHCOMMENT(G194)","v":"ARGONAUT CONSTRUCTORS"},1]
["JASS BOYS TRUCK LINES",43,{"$f":"'[1]Construction Worksheet'!AE85","v":6530401},"M",7,{"$f":"FETCHCOMMENT(E195)","v":"04-2K7404\n04-0K8004\n04-2Q5504\n04-0Q2004\n04-2Q5204\n04-1Q7214\n03-4J1204"},2,{"$f":"FETCHCOMMENT(G195)","v":"BAY CITIES PAVING & GRADING, INC.\nGHILOTTI BROS INC"},"3,4"]
["NAMAN TRUCKING",43,{"$f":"'[1]Construction Worksheet'!AE95","v":1864769.4},"M",6,{"$f":"FETCHCOMMENT(E196)","v":"04-0Q2004\n07-347904\n07-348204\n07-369704\n07-346504\n04-1Q7214"},6,{"$f":"FETCHCOMMENT(G196)","v":"GHILOTTI BROS., INC.\nRASMUSSEN/VANGUARD\nBOSCO CONSTRUCTORS, INC.\nC.A. RASMUSSEN INC\nSECURITY PAVING COMPANY, INC.\nBAY CITIES PAVING & GRADING, INC."},"4,7"]
["R&G TRUCKING",43,{"$f":"'[1]Construction Worksheet'!AE100","v":289437},"M",2,{"$f":"FETCHCOMMENT(E197)","v":"01-0K8904\n04-2K3604"},2,{"$f":"FETCHCOMMENT(G197)","v":"GRANITE CONSTRUCTION COMPANY\nGHILOTTI BROS., INC."},"1,4"]
["S&S TRUCKING",43,{"$f":"'[1]Construction Worksheet'!AE106","v":225150},"M",1,{"$f":"FETCHCOMMENT(E198)","v":"01-0F7104"},1,{"$f":"FETCHCOMMENT(G198)","v":"GHILOTTI CONSTRUCTION COMPANY, INC."},1]
["SEQUOIA CONSULTANTS",33,{"$f":"'[1]Construction Worksheet'!AE133","v":2127048.9699999997},"M",16,{"$f":"FETCHCOMMENT(E199)","v":"03-4H8704\n11-430384\n08-1J6104\n12-0R3134\n11-056404\n06-487404\n08-1K4004\n08-1K6904\n09-374704\n06-0Y1704\n07-347904\n07-351704\n12-0R3114\n07-369704\n08-0G8504\n11-430194"},9,{"$f":"FETCHCOMMENT(G199)","v":"O.C. JONES & SONS, INC.\nHAZARD CONSTRUCTION ENGR, LLC\nFBD VANGUARD CONSTRUCTION, INC.\nPETERSON-CHASE GENERAL ENGINEERING CONSTRUCTION, INC.\nGRANITE CONSTRUCTION COMPANY\nBEADOR CONSTRUCTION COMPANY, INC.\nPAPICH CONSTRUCTION COMPANY INC\nRASMUSSEN/VANGUARD\nC. A. RASMUSSEN, INC."},"3,6,7,8,9,11,12"]
["SIERRA GEOTECH DBE INC",-4142,{"$f":"'[1]Construction Worksheet'!AE153","v":330361.64},"M",9,{"$f":"FETCHCOMMENT(E200)","v":"03-0J01U4\n01-0F7104\n05-1H6504\n04-2Q6504\n05-1G9504\n05-1H4704\n03-4J1204\n05-1H4704\n03-4J1204"},5,{"$f":"FETCHCOMMENT(G200)","v":"MERCER-FRASER COMPANY\nGHILOTTI CONSTRUCTION COMPANY, INC.\nGRANITE CONSTRUCTION COMPANY\nBAY CITIES PAVING & GRADING, INC.\nGORDON N BALL INC"},"1,3,4,5"]
["SYNERGY CONSTRUCTION",-4142,{"$f":"'[1]Construction Worksheet'!AE163","v":1170100},"M",1,{"$f":"FETCHCOMMENT(E201)","v":"07-319604"},1,{"$f":"FETCHCOMMENT(G201)","v":"BEADOR CONSTRUCTION COMPANY, INC."},7]
["TSI ENGINEERING, INC.",-4142,{"$f":"'[1]Construction Worksheet'!AE178","v":6124087},"M",1,{"$f":"FETCHCOMMENT(E202)","v":"08-1J3304\n"},1,{"$f":"FETCHCOMMENT(G202)","v":"TSI ENGINEERING, INC."},8]
[null,null,null,null,null,{"$f":"FETCHCOMMENT(E203)","v":""},null,{"$f":"FETCHCOMMENT(G203)","v":""}]
[null,null,null,null,null,{"$f":"FETCHCOMMENT(E204)","v":""},null,{"$f":"FETCHCOMMENT(G204)","v":""}]
[null,null,null,null,null,{"$f":"FETCHCOMMENT(E205)","v":""},null,{"$f":"FETCHCOMMENT(G205)","v":""}]
[null,null,null,null,null,{"$f":"FETCHCOMMENT(E206)","v":""},null,{"$f":"FETCHCOMMENT(G206)","v":""}]
[null,null,null,null,null,{"$f":"FETCHCOMMENT(E207)","v":""},null,{"$f":"FETCHCOMMENT(G207)","v":""}]
[]
["Asian Pacific","Column1","Dollars","M/F","# of Contracts","Contract #","# of Primes","Prime Name","Districts"]
["ACCU CONSTRUCTION",-4142,{"$f":"'[1]Construction Worksheet'!AM10","v":1452600},"M",3,{"$f":"FETCHCOMMENT(E210)","v":"07-348404\n07-356504\n07-356804"},1,{"$f":"FETCHCOMMENT(G210)","v":"ACCU CONSTRUCTION, INC."},7]
["ACE FENCE COMPANY",33,{"$f":"'[1]Construction Worksheet'!AI31","v":16525670.719999999},"F",23,{"$f":"FETCHCOMMENT(E211)","v":"11-430384\n06-0X250\n07-333604\n12-0R3134\n05-1Q03U4\n08-1J3004\n11-056404\n06-487404\n07-4X9704\n12-0K91U4\n12-0R3154\n08-1K6904\n06-0Y1704\n12-0R3114\n06-0W79U4\n08-0G8504\n11-430194\n07-346504\n06-0U2904\n05-1H44074\n05-1H4704\n07-319604\n12-0H5304"},11,{"$f":"FETCHCOMMENT(G211)","v":"HAZARD CONSTRUCTION ENGR, LLC\nGRANITE CONSTRUCTION COMPANY\nSULLY-MILLER CONTRACTING COMPANY\nPETERSON-CHASE GENERAL ENGINEERING CONSTRUCTION, INC.\nPAPICH CONSTRUCTION COMPANY, INC.\nBEADOR CONSTRUCTION COMPANY, INC.\nPOWELL CONSTRUCTORS, INC.\nSECURITY PAVING COMPANY, INC.\nGRIFFITH COMPANY\nM.C.M. CONSTRUCTION, INC.\nGORDON N. BALL, INC."},"5,6,7,8,11,12"]
["ACE SWEEPERS & WATER TRUCKS",43,{"$f":"'[1]Construction Worksheet'!AM18","v":355618.5},"M",5,{"$f":"FETCHCOMMENT(E212)","v":"04-0K6404\n04-3J2604\n10-1L2804\n04-4G7804\n04-2Q6504"},2,{"$f":"FETCHCOMMENT(G212)","v":"O.C. JONES & SONS, INC.\nBAY CITIES PAVING & GRADING, INC."},"4,10"]
["BRIDGE RUBBER BEARING, LLC",-4142,{"$f":"'[1]Construction Worksheet'!AM29","v":152817.86000000002},"M",6,{"$f":"FETCHCOMMENT(E213)","v":"06-487404\n04-0P9304\n07-369704\n12-0K8704\n05-1H4704\n07-319604"},6,{"$f":"FETCHCOMMENT(G213)","v":"GRANITE CONSTRUCTION COMPANY\nBUGLER CONSTRUCTION, INC.\nC. A. RASMUSSEN, INC.\nORTIZ ENTERPRISES, INC.\nGORDON N. BALL, INC.\nBEADOR CONSTRUCTION COMPANY, INC."},"4,5,6,7,12"]
["CALIFORNIA PROFESSIONAL",-4142,{"$f":"'[1]Construction Worksheet'!AM49","v":9576215.2000000011},"M",10,{"$f":"FETCHCOMMENT(E214)","v":"07-4X9704\n08-1J2704\n12-0S7004\n07-350314\n07-350334\n08-1J4504\n08-1M7404\n06-0U2904\n08-1J3104\n07-319604"},7,{"$f":"FETCHCOMMENT(G214)","v":"BEADOR CONSTRUCTION COMPANY, INC.\nSULLY-MILLER CONTRACTING COMPANY\nAUTOBAHN CONSTRUCTION, INC.\nCROSSTOWN ELECTRICAL & DATA, INC.\nALL AMERICAN ASPHALT\nINTERSTATE CIVIL CONSTRUCTION\nGRIFFITH COMPANY"},"6,7,8,12"]
["FEHOKO CONCRETE INC",43,{"$f":"'[1]Construction Worksheet'!AM60","v":308789},"M",1,{"$f":"FETCHCOMMENT(E215)","v":"07-346104"},1,{"$f":"FETCHCOMMENT(G215)","v":"POWELL CONSTRUCTORS, INC."},7]
["DR. TRAFFIC CONTROL LLC",-4142,{"$f":"'[1]Construction Worksheet'!AM55","v":2941},"M",1,{"$f":"FETCHCOMMENT(E216)","v":"04-0K8004"},1,{"$f":"FETCHCOMMENT(G216)","v":"GHILOTTI BROS INC"},4]
["GLOBAL ROAD SEALING INC",-4142,{"$f":"'[1]Construction Worksheet'!AM91","v":2403852.9300000002},"M",14,{"$f":"FETCHCOMMENT(E217)","v":"12-0S1404\n01-0H6004\n07-333604\n07-377604\n08-1J7204\n12-0K91U4\n12-0R57U4\n04-2Q5504\n07-347904\n12-0R3114\n07-346304\n07-369704\n12-0S8404\n12-0M9704"},12,{"$f":"FETCHCOMMENT(G217)","v":"CHUMO CONSTRUCTION, INC.\nARGONAUT CONSTRUCTORS\nSULLY-MILLER CONTRACTING COMPANY\nPTM GENERAL ENGINEERING SERVICES, INC.\nGRANITE CONSTRUCTION COMPANY\nSECURITY PAVING COMPANY, INC.\nBAY CITIES PAVING & GRADING INC\nRASMUSSEN/VANGUARD\nBEADOR CONSTRUCTION COMPANY, INC.\nC. A. RASMUSSEN, INC.\nBAKER ELECTRIC AND RENEWABLES LLC\nORTIZ ENTERPRISES, INC."},"1,4,7,8,12"]
["GOLDEN STATE TRUCKING",43,{"$f":"'[1]Construction Worksheet'!AM67","v":661700},"M",2,{"$f":"FETCHCOMMENT(E218)","v":"04-0K6404\n04-3J2604\n"},1,{"$f":"FETCHCOMMENT(G218)","v":"O.C. JONES & SONS, INC."},4]
["IMRAE",-4142,{"$f":"'[1]Construction Worksheet'!AM99","v":46458},"M",1,{"$f":"FETCHCOMMENT(E219)","v":"01-0J8904"},1,{"$f":"FETCHCOMMENT(G219)","v":"MERCER-FRASER COMPANY"},1]
["IPS GRINDING AND GROOVING",-4142,{"$f":"'[1]Construction Worksheet'!AI61","v":514004.73},"F",6,{"$f":"FETCHCOMMENT(E220)","v":"07-370404\n07-351704\n08-1J4504\n08-1M7404\n07-369704\n12-0K8704"},5,{"$f":"FETCHCOMMENT(G220)","v":"GRIFFITH COMPANY\nC. A. RASMUSSEN, INC.\nALL AMERICAN ASPHALT\nINTERSTATE CIVIL CONSTRUCTION\nORTIZ ENTERPRISES, INC."},"7,8,12"]
["LEGACY REINFORCING STEEL LLC",-4142,{"$f":"'[1]Construction Worksheet'!AM107","v":1244574.6600000001},"M",3,{"$f":"FETCHCOMMENT(E221)","v":"11-056404\n08-1K4004\n07-346104"},3,{"$f":"FETCHCOMMENT(G221)","v":"HAZARD CONSTRUCTION ENGR, LLC\nBEADOR CONSTRUCTION COMPANY, INC.\nPOWELL CONSTRUCTORS, INC."},"7,8,11"]
["NITTA EROSION CONTROL",-4142,{"$f":"'[1]Construction Worksheet'!AI73","v":18699.2},"F",1,{"$f":"FETCHCOMMENT(E222)","v":"10-0Q2104"},1,{"$f":"FETCHCOMMENT(G222)","v":"BAY CITIES PAVING & GRADING, INC."},10]
["PRIME SUPPLY 1",33,{"$f":"'[1]Construction Worksheet'!AI89","v":517868.51},"F",9,{"$f":"FETCHCOMMENT(E223)","v":"11-430384\n05-1J7804\n11-056404\n01-0H6404\n12-0R57U4\n07-348204\n11-430194\n12-0K8704\n07-346504"},6,{"$f":"FETCHCOMMENT(G223)","v":"HAZARD CONSTRUCTION ENGR, LLC\nCALPORTLAND CONSTRUCTION\nWYLATTI RESOURCE MANAGEMENT, INC.\nSECURITY PAVING COMPANY, INC.\nBOSCO CONSTRUCTORS, INC.\nORTIZ ENTERPRISES INC"},"1,5,7,11,12"]
["S. KWOK ENGINEERS",-4142,{"$f":"'[1]Construction Worksheet'!AM125","v":267369},"M",7,{"$f":"FETCHCOMMENT(E224)","v":"04-2K7404\n04-0K8004\n04-2Q5504\n04-0P9304\n04-2Q6504\n04-2Q5204\n04-1Q7214"},3,{"$f":"FETCHCOMMENT(G224)","v":"BAY CITIES PAVING & GRADING, INC.\nGHILOTTI BROS INC\nBUGLER CONSTRUCTION, INC."},4]
["TRAFFIC LOOPS CRACKFILLING INC",-4142,{"$f":"'[1]Construction Worksheet'!AI101","v":5992116},"F",7,{"$f":"FETCHCOMMENT(E225)","v":"11-430384\n08-1J6104\n12-0R57U4\n07-370404\n10-1L8704\n09-366804\n09-374504"},7,{"$f":"FETCHCOMMENT(G225)","v":"HAZARD CONSTRUCTION ENGR, LLC\nFBD VANGUARD CONSTRUCTION, INC.\nSECURITY PAVING COMPANY, INC.\nGRIFFITH COMPANY\nGRANITE CONSTRUCTION COMPANY\nPAPICH CONSTRUCTION COMPANY\nCALIFORNIA HIGHWAY CONSTRUCTION GROUP, INC."},"7,8,9,10,11,12"]
["TRI COUNTIES TRUCKING",43,{"$f":"'[1]Construction Worksheet'!AI109","v":1228385},"F",3,{"$f":"FETCHCOMMENT(E226)","v":"03-4H8704\n04-0K6404\n03-1H1404"},2,{"$f":"FETCHCOMMENT(G226)","v":"O.C. JONES & SONS, INC.\nMARTIN BROTHERS CONSTRUCTION"},"3,4"]
["TRINITY FENCE COMPANY",-4142,{"$f":"'[1]Construction Worksheet'!AM149","v":1165954},"M",3,{"$f":"FETCHCOMMENT(E227)","v":"08-1K4004\n07-346104\n08-1J3104"},3,{"$f":"FETCHCOMMENT(G227)","v":"BEADOR CONSTRUCTION COMPANY, INC.\nPOWELL CONSTRUCTORS, INC.\nINTERSTATE CIVIL CONSTRUCTION"},"7,8"]
["VT ELECTRIC",-4142,{"$f":"'[1]Construction Worksheet'!AM158","v":2803881},"M",3,{"$f":"FETCHCOMMENT(E228)","v":"12-0K8704\n07-4V5404\n07-346104"},3,{"$f":"FETCHCOMMENT(G228)","v":"ORTIZ ENTERPRISES, INC.\nGENUINE ENGINEERING INC\nPOWELL CONSTRUCTORS, INC."},"7,12"]
["WANG TECHNOLOGY LLC",-4142,{"$f":"'[1]Construction Worksheet'!AI117","v":113952},"F",3,{"$f":"FETCHCOMMENT(E229)","v":"04-2K3604\n04-0AA624\n04-2Q5204"},3,{"$f":"FETCHCOMMENT(G229)","v":"GHILOTTI BROS., INC.\nGRANITE ROCK COMPANY\nBAY CITIES PAVING & GRADING, INC."},4]
["ZETH ENGINEERING ",-4142,{"$f":"'[1]Construction Worksheet'!AM167","v":3745820.2},"M",1,{"$f":"FETCHCOMMENT(E230)","v":"08-0G8504"},1,{"$f":"FETCHCOMMENT(G230)","v":"GRANITE CONSTRUCTION COMPANY"},8]
[null,null,null,null,null,{"$f":"FETCHCOMMENT(E231)","v":""},null,{"$f":"FETCHCOMMENT(G231)","v":""}]
[null,null,null,null,null,{"$f":"FETCHCOMMENT(E232)","v":""},null,{"$f":"FETCHCOMMENT(G232)","v":""}]
[]
["Other","Column1","Dollars","M/F","# of Contracts","Contract #","# of Primes","Prime Name","Districts"]
["ANDREW TEIXEIRA WATER TRUCK",43,{"$f":"'[1]Construction Worksheet'!AW11","v":58080},"M",1,{"$f":"FETCHCOMMENT(E235)","v":"04-2K3604"},1,{"$f":"FETCHCOMMENT(G235)","v":"GHILOTTI BROS., INC."},10]
[null,null,null,null,null,{"$f":"FETCHCOMMENT(E236)","v":""},null,{"$f":"FETCHCOMMENT(G236)","v":""}]
[]
["Non Minority Women","Column1","Dollars","M/F","# of Contracts","Contract #","# of Primes","Prime Name","Districts"]
["ACTION SWEEPING SERVICES INC",43,{"$f":"'[1]Construction Worksheet'!AQ16","v":282610},"F",5,{"$f":"FETCHCOMMENT(E239)","v":"03-4H8704\n06-487404\n10-1L8704\n01-0K8904\n03-3J9004"},3,{"$f":"FETCHCOMMENT(G239)","v":"O.C. JONES & SONS, INC.\nGRANITE CONSTRUCTION COMPANY\nPACIFIC INFRASTRUCTURE INC"},"1,3,6,10"]
["ALTA GROUP",-4142,{"$f":"'[1]Construction Worksheet'!AQ29","v":397500.2},"F",4,{"$f":"FETCHCOMMENT(E240)","v":"03-4H8704\n04-2K7404\n04-0K8004\n01-0K8904"},3,{"$f":"FETCHCOMMENT(G240)","v":"O.C. JONES & SONS, INC.\nBAY CITIES PAVING & GRADING, INC.\nGHILOTTI BROS INC"},"3,4"]
["AMERICAN TRAFFIC SAFETY",-4142,{"$f":"'[1]Construction Worksheet'!AQ35","v":22600},"F",1,{"$f":"FETCHCOMMENT(E241)","v":"10-1J8204"},1,{"$f":"FETCHCOMMENT(G241)","v":"GEORGE REED, INC."},10]
["AURORA INDSTRIAL HYGIENE",-4142,{"$f":"'[1]Construction Worksheet'!AQ41","v":1000},"F",1,{"$f":"FETCHCOMMENT(E242)","v":"02-3H6904"},1,{"$f":"FETCHCOMMENT(G242)","v":"DIG IT CONSTRUCTION, INC."},2]
["AVILA TRAFFIC SAFETY ",33,{"$f":"'[1]Construction Worksheet'!AQ57","v":4574952.5999999996},"F",6,{"$f":"FETCHCOMMENT(E243)","v":"05-1J7804\n04-1Q2004\n05-1H6504\n05-1K4504\n05-1K5104\n06-0U2904"},5,{"$f":"FETCHCOMMENT(G243)","v":"CALPORTLAND CONSTRUCTION\nCOLUMBIA ELECTRIC, INC.\nGRANITE CONSTRUCTION COMPANY\nCENTRAL COAST FINANCIAL GROUP, INC. DBA CCFG CONSTRUCTION\nGRIFFITH COMPANY"},"4,5,6"]
["BANCROFT CONSTRUCTION SERVICES",-4142,{"$f":"'[1]Construction Worksheet'!AQ62","v":1473800},"F",2,{"$f":"FETCHCOMMENT(E244)","v":"08-1K6904\n07-370404"},2,{"$f":"FETCHCOMMENT(G244)","v":"GRANITE CONSTRUCTION COMPANY\nGRIFFITH COMPANY"},"7,8"]
["BLUEPRINT BONDING INSURANCE",-4142,{"$f":"'[1]Construction Worksheet'!AQ75","v":47437},"F",1,{"$f":"FETCHCOMMENT(E245)","v":"09-374504"},1,{"$f":"FETCHCOMMENT(G245)","v":"CALIFORNIA HIGHWAY CONSTRUCTION GROUP, INC."},9]
["BOUTHILLIER CONSTRUCTION, INC.",-4142,{"$f":"'[1]Construction Worksheet'!AQ87","v":882747},"F",1,{"$f":"FETCHCOMMENT(E246)","v":"01-0H6404"},1,{"$f":"FETCHCOMMENT(G246)","v":"WYLATTI RESOURCE MANAGEMENT, INC."},1]
["CAIN TRUCKING, INC.",33,{"$f":"'[1]Construction Worksheet'!AQ98","v":17150215},"F",4,{"$f":"FETCHCOMMENT(E247)","v":"06-487404\n06-0W79U4\n09-366804\n04-0AA624"},4,{"$f":"FETCHCOMMENT(G247)","v":"GRANITE CONSTRUCTION COMPANY\nSECURITY PAVING COMPANY, INC.\nPAPICH CONSTRUCTION COMPANY, INC.\nGRANITE ROCK COMPANY"},"4,6,9"]
["CAL SIGNAL CORP",-4142,{"$f":"'[1]Construction Worksheet'!AQ104","v":308348.88},"F",3,{"$f":"FETCHCOMMENT(E248)","v":"04-2Q8004\n05-1H6504\n05-1K6404"},2,{"$f":"FETCHCOMMENT(G248)","v":"GORDON N. BALL, INC.\nGRANITE CONSTRUCTION COMPANY"},"4,5"]
["CALIFORNIA TRAFFIC SAFETY",-4142,{"$f":"'[1]Construction Worksheet'!AQ112","v":684628.5},"F",1,{"$f":"FETCHCOMMENT(E249)","v":"04-0K6404"},1,{"$f":"FETCHCOMMENT(G249)","v":"O.C. JONES & SONS, INC."},4]
["CAROLINA CONSTRUCTION SUPPLIES",33,{"$f":"'[1]Construction Worksheet'!AQ118","v":486205.07},"F",3,{"$f":"FETCHCOMMENT(E250)","v":"12-0K91U4\n12-0R57U4\n07-351704"},3,{"$f":"FETCHCOMMENT(G250)","v":"GRANITE CONSTRUCTION COMPANY\nSECURITY PAVING COMPANY, INC.\nC. A. RASMUSSEN, INC."},"7, 12"]
["CAT TRACKING",-4142,{"$f":"'[1]Construction Worksheet'!AQ126","v":210175.05},"F",3,{"$f":"FETCHCOMMENT(E251)","v":"07-4X9704\n12-0S8404\n07-319604"},2,{"$f":"FETCHCOMMENT(G251)","v":"BEADOR CONSTRUCTION COMPANY, INC.\nBAKER ELECTRIC & RENEWABLES, LLC"},"7,12"]
["CES",-4142,{"$f":"'[1]Construction Worksheet'!AQ132","v":53760.76},"F",3,{"$f":"FETCHCOMMENT(E252)","v":"07-347904\n07-348204\n12-0S8404"},3,{"$f":"FETCHCOMMENT(G252)","v":"RASMUSSEN/VANGUARD\nBOSCO CONSTRUCTORS, INC.\nBAKER ELECTRIC & RENEWABLES, LLC"},"7,12"]
["CHAPCO CONSTRUCTION",-4142,{"$f":"'[1]Construction Worksheet'!AQ139","v":258700},"F",1,{"$f":"FETCHCOMMENT(E253)","v":"10-1K8404"},1,{"$f":"FETCHCOMMENT(G253)","v":"MOUNTAIN CASCADE, INC."},10]
["CMC TRAFFIC CONTROL",-4142,{"$f":"'[1]Construction Worksheet'!AQ158","v":1708134.66},"F",7,{"$f":"FETCHCOMMENT(E254)","v":"04-0K1004\n04-3J2604\n04-2Q8004\n04-1Q2004\n04-0Q2004\n04-0Q1304\n05-1H4704"},5,{"$f":"FETCHCOMMENT(G254)","v":"MIKE BROWN ELECTRIC CO.\nO.C. JONES & SONS, INC.\nGORDON N. BALL, INC.\nCOLUMBIA ELECTRIC, INC.\nGHILOTTI BROS., INC."},"4,5"]
["COLUMBIA ELECTRIC, INC.",-4142,{"$f":"'[1]Construction Worksheet'!AQ174","v":22989383},"F",7,{"$f":"FETCHCOMMENT(E255)","v":"04-1Q2004\n04-0K6404\n04-0P9204\n04-0Q2004\n04-2Q6504\n04-0Q1304\n04-0G3604"},5,{"$f":"FETCHCOMMENT(G255)","v":"COLUMBIA ELECTRIC, INC.\nO.C. JONES & SONS, INC.\nMYERS & SONS CONSTRUCTION, LLC.\nGHILOTTI BROS., INC.\nBAY CITIES PAVING & GRADING, INC."},4]
["CONSTRUCTION SURVEY, INC.",-4142,{"$f":"'[1]Construction Worksheet'!AQ188","v":16000},"F",1,{"$f":"FETCHCOMMENT(E256)","v":"04-2Q6104"},1,{"$f":"FETCHCOMMENT(G256)","v":"GRANITE ROCK COMPANY"},4]
["CONTERA CONSTRUCTION CORP",33,{"$f":"'[1]Construction Worksheet'!AQ180","v":2100400},"F",2,{"$f":"FETCHCOMMENT(E257)","v":"11-056404\n08-1K4004"},2,{"$f":"FETCHCOMMENT(G257)","v":"HAZARD CONSTRUCTION ENGR, LLC\nBEADOR CONSTRUCTION COMPANY, INC."},"8,11"]
["COOPER ENGINEERING",33,{"$f":"'[1]Construction Worksheet'!AQ199","v":4123499.71},"F",6,{"$f":"FETCHCOMMENT(E258)","v":"12-0S1404\n12-0R3134\n07-346304\n01-0K8904\n12-0U9104\n12-0M9704"},4,{"$f":"FETCHCOMMENT(G258)","v":"CHUMO CONSTRUCTION, INC.\nPETERSON-CHASE GENERAL ENGINEERING CONSTRUCTION, INC.\nGRANITE CONSTRUCTION COMPANY\nORTIZ ENTERPRISES, INC."},"1,7,12"]
["CRW ASSIST",-4142,{"$f":"'[1]Construction Worksheet'!AQ205","v":121270},"F",1,{"$f":"FETCHCOMMENT(E259)","v":"02-3H6904"},1,{"$f":"FETCHCOMMENT(G259)","v":"DIG IT CONSTRUCTION, INC."},2]
["DEES BURKE ENGINEERING",-4142,{"$f":"'[1]Construction Worksheet'!AQ246","v":10699379.67},"F",28,{"$f":"FETCHCOMMENT(E260)","v":"05-1J7804\n04-2Q6104\n04-4K3004\n01-0J8904\n04-0P9204\n02-4H0704\n04-2Q8004\n05-1H6504\n05-1K4504\n12-0K91U4\n12-0R3154\n08-1K6904\n04-2Q5504\n07-370404\n12-0R32U4\n05-1J8604\n04-0P9304\n07-350314\n06-0W79U4\n09-366804\n07-346104\n08-1M0404\n08-1C07U4\n08-1J3104\n05-1H4404\n05-1H4704\n10-0X7404\n12-0S5304"},19,{"$f":"FETCHCOMMENT(G260)","v":"CALPORTLAND CONSTRUCTION\nGRANITE ROCK COMPANY\nGORDON N. BALL, INC.\nMERCER-FRASER COMPANY\nMYERS & SONS CONSTRUCTION LLC\nHAT CREEK CONSTRUCTION & MATERIALS, INC.\nGRANITE CONSTRUCTION COMPANY\nPOWELL CONSTRUCTORS, INC.\nBAY CITIES PAVING & GRADING INC\nGRIFFITH COMPANY\nR.J. NOBLE COMPANY\nPAPICH CONSTRUCTION COMPANY\nBUGLER CONSTRUCTION, INC.\nCROSSTOWN ELECTRICAL & DATA, INC.\nSECURITY PAVING COMPANY, INC.\nPOWELL CONSTRUCTORS, INC.\nINTERSTATE CIVIL CONSTRUCTION\nMCM CONSTRUCTION INC\nSTEELHEAD CONSTRUCTORS JV"},"1,2,4,5,6,7,8,9,10,12"]
["DILLARD ENVIRONMENTAL SERVICES",43,{"$f":"'[1]Construction Worksheet'!AQ259","v":30544},"F",1,{"$f":"FETCHCOMMENT(E261)","v":"03-3J9004"},1,{"$f":"FETCHCOMMENT(G261)","v":"PACIFIC INFRASTRUCTURE INC"},3]
["DIVERSIFIED LANDSCAPE CO",-4142,{"$f":"'[1]Construction Worksheet'!AQ295","v":12311210.91},"F",18,{"$f":"FETCHCOMMENT(E262)","v":"11-430384\n07-333604\n08-1J6104\n08-1J3004\n08-1J2704\n08-1J7204\n12-0K91U4\n08-1K6904\n07-332304\n07-346804\n12-0R32U4\n07-350334\n08-1M7404\n12-0R3114\n07-346304\n11-430194\n12-0S8404"},12,{"$f":"FETCHCOMMENT(G262)","v":"HAZARD CONSTRUCTION ENGR, LLC\nSULLY-MILLER CONTRACTING COMPANY\nFBD VANGUARD CONSTRUCTION, INC.\nGRANITE CONSTRUCTION COMPANY\nTORO ENTERPRISES INC\nR.J. NOBLE COMPANY\nCROSSTOWN ELECTRICAL & DATA, INC.\nINTERSTATE CIVIL CONSTRUCTION\nBEADOR CONSTRUCTION COMPANY, INC.\nCHUMO CONSTRUCTION\nBAKER ELECTRIC & RENEWABLES, LLC\nPOWELL CONSTRUCTORS, INC."},"7,8,11,12"]
["DOUBLE E TRANSPORTATION INC",43,{"$f":"'[1]Construction Worksheet'!AQ310","v":4590674.5199999996},"F",6,{"$f":"FETCHCOMMENT(E263)","v":"05-1Q03U4\n09-374704\n05-1J8604\n06-0Y1704\n06-0U2904\n09-374504"},3,{"$f":"FETCHCOMMENT(G263)","v":"PAPICH CONSTRUCTION COMPANY, INC.\nGRIFFITH COMPANY\nCALIFORNIA HIGHWAY CONSTRUCTION GROUP, INC."},"5,6,9"]
["E. AMEZCUA TRUCKING, INC.",43,{"$f":"'[1]Construction Worksheet'!AQ316","v":139780},"F",1,{"$f":"FETCHCOMMENT(E264)","v":"05-1K6404"},1,{"$f":"FETCHCOMMENT(G264)","v":"GRANITE CONSTRUCTION COMPANY"},5]
["ETA HUMBOLDT",-4142,{"$f":"'[1]Construction Worksheet'!AQ326","v":319076.25},"F",3,{"$f":"FETCHCOMMENT(E265)","v":"01-0H6404\n01-0J2104\n01-0K9504"},3,{"$f":"FETCHCOMMENT(G265)","v":"WYLATTI RESOURCE MANAGEMENT, INC.\nMERCER-FRASER COMPANY\nGRANITE CONSTRUCTION COMPANY"},1]
["FOREFRONT DEEP FOUNDATIONS INC",-4142,{"$f":"'[1]Construction Worksheet'!AQ332","v":3102999.52},"F",2,{"$f":"FETCHCOMMENT(E266)","v":"05-1J7804\n12-0M9704"},2,{"$f":"FETCHCOMMENT(G266)","v":"CALPORTLAND CONSTRUCTION\nORTIZ ENTERPRISES, INC."},"5,12"]
["GALLAWAY ENTERPRISES",-4142,{"$f":"'[1]Construction Worksheet'!AQ355","v":16205},"F",4,{"$f":"FETCHCOMMENT(E267)","v":"03-4H8704\n02-4H0604\n02-0J8504\n03-3J9004"},4,{"$f":"FETCHCOMMENT(G267)","v":"O.C. JONES & SONS, INC.\nHAT CREEK CONSTRUCTION & MATERIALS, INC.\nTULLIS INC\nPACIFIC INFRASTRUCTURE INC"},"2,3"]
["GALLION SWEEPING CO",43,{"$f":"'[1]Construction Worksheet'!AQ366","v":1359767.2},"F",4,{"$f":"FETCHCOMMENT(E268)","v":"07-370404\n07-347904\n07-351704\n07-369704"},3,{"$f":"FETCHCOMMENT(G268)","v":"GRIFFITH COMPANY\nRASMUSSEN/VANGUARD\nC. A. RASMUSSEN, INC."},7]
["GDS INDUSTRIES INC",33,{"$f":"'[1]Construction Worksheet'!AQ380","v":4023338.88},"F",5,{"$f":"FETCHCOMMENT(E269)","v":"04-0P7604\n08-0G8504\n04-2Q5204\n04-1Q7214\n05-1H4404"},4,{"$f":"FETCHCOMMENT(G269)","v":"ST. FRANCIS ELECTRIC, LLC.\nGRANITE CONSTRUCTION COMPANY\nBAY CITIES PAVING & GRADING, INC.\nMCM CONSTRUCTION INC"},"4,5,8"]
["GEM GRIFFIN ENGINEERING",-4142,{"$f":"'[1]Construction Worksheet'!AQ386","v":24700},"F",1,{"$f":"FETCHCOMMENT(E270)","v":"12-0K8704"},1,{"$f":"FETCHCOMMENT(G270)","v":"ORTIZ ENTERPRISES INC"},12]
["GENUINE ENGINEERING INC",-4142,{"$f":"'[1]Construction Worksheet'!AQ394","v":808152.5},"F",1,{"$f":"FETCHCOMMENT(E271)","v":"07-4V5404"},1,{"$f":"FETCHCOMMENT(G271)","v":"GENUINE ENGINEERING INC"},7]
["GREGORY CONSTRUCTION EQUIPMENT",43,{"$f":"'[1]Construction Worksheet'!AQ411","v":209920},"F",3,{"$f":"FETCHCOMMENT(E272)","v":"03-0J01U4\n02-3H6904\n10-0Q2104"},3,{"$f":"FETCHCOMMENT(G272)","v":"MERCER-FRASER COMPANY\nDIG IT CONSTRUCTION, INC.\nBAY CITIES PAVING & GRADING, INC."},"2,3,10"]
["HARD WAY TRANSPORTATION INC",-4142,{"$f":"'[1]Construction Worksheet'!AQ419","v":3228242.1},"F",3,{"$f":"FETCHCOMMENT(E273)","v":"07-370404\n10-1L8704\n04-1Q7214"},3,{"$f":"FETCHCOMMENT(G273)","v":"GRIFFITH COMPANY\nGRANITE CONSTRUCTION COMPANY\nBAY CITIES PAVING & GRADING, INC."},"4,7,10"]
["HEARN CONSTRUCTION INC DBA BOBS BACKHOE & TRUCKING",43,{"$f":"'[1]Construction Worksheet'!AQ429","v":360000},"F",1,{"$f":"FETCHCOMMENT(E274)","v":"05-1H4404"},1,{"$f":"FETCHCOMMENT(G274)","v":"M.C.M. CONSTRUCTION, INC."},5]
["J & M LAND RESTORATION INC",-4142,{"$f":"'[1]Construction Worksheet'!AQ454","v":4155565.55},"F",12,{"$f":"FETCHCOMMENT(E275)","v":"05-1J7804\n02-4H0604\n05-1Q03U4\n06-487404\n09-374704\n09-379104\n06-0Y1704\n06-0W79U4\n03-0J5604\n08-1M0404\n09-374504\n10-0X7404"},10,{"$f":"FETCHCOMMENT(G275)","v":"CALPORTLAND CONSTRUCTION\nHAT CREEK CONSTRUCTION & MATERIALS, INC.\nPAPICH CONSTRUCTION COMPANY, INC.\nGRANITE CONSTRUCTION COMPANY\nROAD AND HIGHWAY BUILDERS LLC\nSECURITY PAVING COMPANY, INC.\nMERCER-FRASER COMPANY\nINTERSTATE CIVIL CONSTRUCTION\nCALIFORNIA HIGHWAY CONSTRUCTION GROUP, INC.\nSTEELHEAD CONSTRUCTORS JV"},"2,3,5,6,8,9,10"]
["JARRETT FOUNDATIONS",33,{"$f":"'[1]Construction Worksheet'!AQ461","v":1103692.5},"F",2,{"$f":"FETCHCOMMENT(E276)","v":"01-0J8904\n10-0X7404"},2,{"$f":"FETCHCOMMENT(G276)","v":"MERCER-FRASER COMPANY\nSTEELHEAD CONSTRUCTORS JV"},"1,10"]
["K&K CONSTRUCTION SUPPLY, INC.",33,{"$f":"'[1]Construction Worksheet'!AQ473","v":1160146.1299999999},"F",5,{"$f":"FETCHCOMMENT(E277)","v":"08-1J6104\n06-487404\n07-347904\n04-0AA624\n07-319604"},5,{"$f":"FETCHCOMMENT(G277)","v":"FBD VANGUARD CONSTRUCTION, INC.\nGRANITE CONSTRUCTION COMPANY\nRASMUSSEN/VANGUARD\nGRANITE ROCK COMPANY\nBEADOR CONSTRUCTION COMPANY, INC."},"6,7,8"]
["KRITZ EXCAVATING & TRUCKING",-4142,{"$f":"'[1]Construction Worksheet'!AQ480","v":40426.400000000001},"F",1,{"$f":"FETCHCOMMENT(E278)","v":"05-1N3404"},1,{"$f":"FETCHCOMMENT(G278)","v":"SOUZA ENGINEERING CONTRACTING, INC. DBA SOUZA CONSTRUCTION"},5]
["KUCK TRUCKING",-4142,{"$f":"'[1]Construction Worksheet'!AQ490","v":1216600},"F",1,{"$f":"FETCHCOMMENT(E279)","v":"09-379104"},1,{"$f":"FETCHCOMMENT(G279)","v":"ROAD AND HIGHWAY BUILDERS LLC"},9]
["LD INNOVATIONS",33,{"$f":"'[1]Construction Worksheet'!AQ497","v":1107975.5999999999},"F",2,{"$f":"FETCHCOMMENT(E280)","v":"10-1K8404\n04-2Q5204"},2,{"$f":"FETCHCOMMENT(G280)","v":"MOUNTAIN CASCADE, INC.\nBAY CITIES PAVING & GRADING, INC."},"4,10"]
["LINDY'S COLD PLANNING",-4142,{"$f":"'[1]Construction Worksheet'!AQ520","v":9220971.25},"F",11,{"$f":"FETCHCOMMENT(E281)","v":"07-333604\n08-1J6104\n08-1J2704\n08-1J7204\n08-1K4004\n12-0K91U4\n08-1K6904\n07-347904\n07-351704\n07-369704\n08-0G8504"},6,{"$f":"FETCHCOMMENT(G281)","v":"SULLY-MILLER CONTRACTING COMPANY\nFBD VANGUARD CONSTRUCTION, INC.\nBEADOR CONSTRUCTION COMPANY, INC.\nGRANITE CONSTRUCTION COMPANY\nRASMUSSEN/VANGUARD\nC. A. RASMUSSEN, INC."},"7,8,12"]
["LMS TRANSPORT",33,{"$f":"'[1]Construction Worksheet'!AQ542","v":13146566.65},"F",16,{"$f":"FETCHCOMMENT(E282)","v":"05-1J7804\n12-0S1404\n07-333604\n08-1J6104\n05-1K4504\n08-1J2704\n08-1J7204\n08-1K4004\n08-1K6904\n07-370404\n09-379104\n12-0R32U4\n07-347904\n07-351704\n07-369704\n12-0K8704"},12,{"$f":"FETCHCOMMENT(G282)","v":"CALPORTLAND CONSTRUCTION\nCHUMO CONSTRUCTION, INC.\nSULLY-MILLER CONTRACTING COMPANY\nFBD VANGUARD CONSTRUCTION, INC.\nBEADOR CONSTRUCTION COMPANY, INC.\nGRANITE CONSTRUCTION COMPANY\nGRIFFITH COMPANY \nROAD AND HIGHWAY BUILDERS LLC\nR.J. NOBLE COMPANY\nRASMUSSEN/VANGUARD\nC. A. RASMUSSEN, INC.\nORTIZ ENTERPRISE INC"},"5,7,8,9,12"]
["LOGISTICAL ENTERPRISES",33,{"$f":"'[1]Construction Worksheet'!AQ548","v":128019.18},"F",1,{"$f":"FETCHCOMMENT(E283)","v":"02-1J75U4"},1,{"$f":"FETCHCOMMENT(G283)","v":"HAT CREEK CONSTRUCTION & MATERIALS, INC."},2]
["LOWERS WELDING & FABRICATION",-4142,{"$f":"'[1]Construction Worksheet'!AQ554","v":52477.88},"F",1,{"$f":"FETCHCOMMENT(E284)","v":"01-0H6404"},1,{"$f":"FETCHCOMMENT(G284)","v":"WYLATTI RESOURCE MANAGEMENT, INC."},1]
["M B PROFESSIONAL",-4142,{"$f":"'[1]Construction Worksheet'!AQ573","v":380961},"F",5,{"$f":"FETCHCOMMENT(E285)","v":"07-347904\n07-351704\n07-346304\n07-346104\n08-1J3104"},5,{"$f":"FETCHCOMMENT(G285)","v":"RASMUSSEN/VANGUARD\nC. A. RASMUSSEN, INC.\nCHUMO CONSTRUCTION, INC.\nPOWELL CONSTRUCTORS, INC.\nINTERSTATE CIVIL CONSTRUCTION"},"7,8"]
["M & M HAULING INC",43,{"$f":"'[1]Construction Worksheet'!AQ560","v":50400},"F",1,{"$f":"FETCHCOMMENT(E286)","v":"09-374504"},1,{"$f":"FETCHCOMMENT(G286)","v":"CALIFORNIA HIGHWAY CONSTRUCTION GROUP, INC."},9]
["MCW TRAFFIC CONTROL",-4142,{"$f":"'[1]Construction Worksheet'!AQ592","v":1669411},"F",8,{"$f":"FETCHCOMMENT(E287)","v":"03-4H8704\n01-0F7104\n02-0K6404\n10-1L8704\n04-0P9304\n04-2K3604\n05-1G9504\n05-1H4704"},6,{"$f":"FETCHCOMMENT(G287)","v":"O.C. JONES & SONS, INC.\nGHILOTTI CONSTRUCTION COMPANY, INC.\nMCCUEN CONSTRUCTION, INC.\nGRANITE CONSTRUCTION COMPANY\nBUGLER CONSTRUCTION, INC.\nGORDON N BALL"},"1,2,3,4,5,10"]
["MOUNTAINVIEW BIOLOGICAL",-4142,{"$f":"'[1]Construction Worksheet'!AQ602","v":741500},"F",5,{"$f":"FETCHCOMMENT(E288)","v":"08-1K4004\n08-1J4504\n08-1M7404\n08-0G8504\n08-1J3104"},4,{"$f":"FETCHCOMMENT(G288)","v":"BEADOR CONSTRUCTION COMPANY, INC.\nALL AMERICAN ASPHALT\nINTERSTATE CIVIL CONSTRUCTION\nGRANITE CONSTRUCTION COMPANY"},8]
["NICHOLLS TRUCKING INC",43,{"$f":"'[1]Construction Worksheet'!AQ621","v":1112465},"F",3,{"$f":"FETCHCOMMENT(E289)","v":"01-0J8904\n01-0J2104\n01-0K9504"},2,{"$f":"FETCHCOMMENT(G289)","v":"MERCER-FRASER COMPANY\nGRANITE CONSTRUCTION COMPANY"},1]
["NORTH STATE GENERAL ENGINEERING",-4142,{"$f":"'[1]Construction Worksheet'!AQ626","v":584727},"F",2,{"$f":"FETCHCOMMENT(E290)","v":"03-1H1404\n03-3H8304"},2,{"$f":"FETCHCOMMENT(G290)","v":"MARTIN BROTHERS CONSTRUCTION\nPACIFIC INFRASTRUCTURE CONSTRUCTION, LLC"},3]
["PAVEMENT MANAGEMENT",-4142,{"$f":"'[1]Construction Worksheet'!AQ634","v":204975},"F",3,{"$f":"FETCHCOMMENT(E291)","v":"02-3H6904\n07-370404\n06-0U2904"},2,{"$f":"FETCHCOMMENT(G291)","v":"DIG IT CONSTRUCTION, INC.\nGRIFFITH COMPANY"},"2,6,7"]
["PAYCO SPECIALTIES",-4142,{"$f":"'[1]Construction Worksheet'!AQ640","v":4196380.59},"F",3,{"$f":"FETCHCOMMENT(E292)","v":"11-430384\n11-056404\n11-430194"},1,{"$f":"FETCHCOMMENT(G292)","v":"HAZARD CONSTRUCTION ENGR, LLC"},11]
["PC&N CONSTRUCTION JINC",33,{"$f":"'[1]Construction Worksheet'!AQ652","v":1887027.72},"F",8,{"$f":"FETCHCOMMENT(E293)","v":"04-0K6404\n04-0P9204\n04-0P7604\n04-2Q5504\n04-2K3604\n04-0Q1304\n03-3J9004\n10-0X7404"},7,{"$f":"FETCHCOMMENT(G293)","v":"O.C. JONES & SONS, INC.\nMYERS & SONS CONSTRUCTION, LLC.\nST. FRANCIS ELECTRIC, LLC.\nBAY CITIES PAVING & GRADING INC\nGHILOTTI BROS., INC.\nPACIFIC INFRASTRUCTURE INC\nSTEELHEAD CONSTRUCTORS JV"},"3,4,10"]
["PLAYA SAFETY, INC.",-4142,{"$f":"'[1]Construction Worksheet'!AQ660","v":110581.84},"F",2,{"$f":"FETCHCOMMENT(E294)","v":"08-1J6104\n07-346504"},2,{"$f":"FETCHCOMMENT(G294)","v":"FBD VANGUARD CONSTRUCTION, INC.\nSECURITY PAVING COMPANY, INC."},"7,8"]
["QUALITY HYDROSEEDING",33,{"$f":"'[1]Construction Worksheet'!AQ668","v":99566.399999999994},"F",1,{"$f":"FETCHCOMMENT(E295)","v":"08-0G8504"},1,{"$f":"FETCHCOMMENT(G295)","v":"GRANITE CONSTRUCTION COMPANY"},8]
["R DUGAN CONSTRUCTION",-4142,{"$f":"'[1]Construction Worksheet'!AQ679","v":341831},"F",1,{"$f":"FETCHCOMMENT(E296)","v":"11-430194"},1,{"$f":"FETCHCOMMENT(G296)","v":"HAZARD CONSTRUCTION COMPANY DBA HAZARD CONSRUCTION ENGR LLC"},11]
["RCR TRAFFIC SPECIALIST",33,{"$f":"'[1]Construction Worksheet'!AQ687","v":21913.919999999998},"F",1,{"$f":"FETCHCOMMENT(E297)","v":"07-332304"},1,{"$f":"FETCHCOMMENT(G297)","v":"TORO ENTERPRISES INC"},7]
["RDL EQUIPMENT",33,{"$f":"'[1]Construction Worksheet'!AQ695","v":380000},"F",1,{"$f":"FETCHCOMMENT(E298)","v":"12-0K91U4"},1,{"$f":"FETCHCOMMENT(G298)","v":"GRANITE CONSTRUCTION COMPANY"},12]
["ROBERTS OIL CORPORATION",33,{"$f":"'[1]Construction Worksheet'!AQ701","v":979238.40000000002},"F",2,{"$f":"FETCHCOMMENT(E299)","v":"11-430384\n12-0R57U4"},2,{"$f":"FETCHCOMMENT(G299)","v":"HAZARD CONSTRUCTION ENGR, LLC\nSECURITY PAVING COMPANY, INC."},"11,12"]
["ROLL N ROCK CONSTRUCTION",-4142,{"$f":"'[1]Construction Worksheet'!AQ724","v":7944737.3700000001},"F",10,{"$f":"FETCHCOMMENT(E300)","v":"03-0J01U4\n01-0H6004\n02-3H6904\n01-0J8904\n03-1H1404\n03-3H8304\n01-0J2104\n02-2J2204\n03-0J5604\n02-0J8504"},7,{"$f":"FETCHCOMMENT(G300)","v":"MERCER-FRASER COMPANY\nARGONAUT CONSTRUCTORS\nDIG IT CONSTRUCTION, INC.\nMARTIN BROTHERS CONSTRUCTION\nPACIFIC INFRASTRUCTURE CONSTRUCTION, LLC\nHIGHWAY SPECIALTY COMPANY, INC.\nTULLIS INC"},"1,2,3"]
["ROUCH REBAR INC",-4142,{"$f":"'[1]Construction Worksheet'!AQ730","v":77015},"F",1,{"$f":"FETCHCOMMENT(E301)","v":"08-1M0404"},1,{"$f":"FETCHCOMMENT(G301)","v":"INTERSTATE CIVIL CONSTRUCTION"},8]
["S.A.M. RHODES ",-4142,{"$f":"'[1]Construction Worksheet'!AQ754","v":608137},"F",11,{"$f":"FETCHCOMMENT(E302)","v":"03-0J01U4\n02-4H0604\n01-0J8904\n02-4H03U4\n02-1J75U4\n02-4H0104\n02-4H0704\n05-1H6504\n01-0K8904\n01-0J2104\n02-0J8504"},4,{"$f":"FETCHCOMMENT(G302)","v":"MERCER-FRASER COMPANY\nHAT CREEK CONSTRUCTION & MATERIALS, INC.\nGRANITE CONSTRUCTION COMPANY\nTULLIS INC"},"1,2,3,5"]
["SCHOTKA CONSTRUCTION",-4142,{"$f":"'[1]Construction Worksheet'!AQ761","v":136280},"F",2,{"$f":"FETCHCOMMENT(E303)","v":"04-0K8004\n04-0AA624"},2,{"$f":"FETCHCOMMENT(G303)","v":"GHILOTTI BROS INC\nGRANITE ROCK COMPANY"},4]
["SELL LUMBER CORPORATION",33,{"$f":"'[1]Construction Worksheet'!AQ772","v":10621.28},"F",1,{"$f":"FETCHCOMMENT(E304)","v":"02-2J2204"},1,{"$f":"FETCHCOMMENT(G304)","v":"HIGHWAY SPECIALTY COMPANY, INC."},2]
["SHASTA PRECAST, INC.",-4142,{"$f":"'[1]Construction Worksheet'!AQ787","v":368506.96},"F",5,{"$f":"FETCHCOMMENT(E305)","v":"02-1J75U4\n02-4H0704\n04-0K8004\n10-1L8704\n04-2K3604"},3,{"$f":"FETCHCOMMENT(G305)","v":"HAT CREEK CONSTRUCTION & MATERIALS, INC.\nGHILOTTI BROS INC\nGRANITE CONSTRUCTION COMPANY"},"1,2,4,10"]
["SPECS CIVIL SOLUTIONS ",-4142,{"$f":"'[1]Construction Worksheet'!AQ794","v":97750.8},"F",1,{"$f":"FETCHCOMMENT(E306)","v":"09-366804"},1,{"$f":"FETCHCOMMENT(G306)","v":"PAPICH CONSTRUCTION COMPANY, INC."},9]
["SPRING RIVERS ECOLOGICAL",-4142,{"$f":"'[1]Construction Worksheet'!AQ812","v":74400},"F",4,{"$f":"FETCHCOMMENT(E307)","v":"02-3H6904\n02-4H03U4\n02-1J75U4\n02-4H0704"},2,{"$f":"FETCHCOMMENT(G307)","v":"DIG IT CONSTRUCTION, INC.\nHAT CREEK CONSTRUCTION & MATERIALS, INC."},2]
["SUMMIT WEST ENVIRONMENTAL",-4142,{"$f":"'[1]Construction Worksheet'!AQ843","v":33070},"F",1,{"$f":"FETCHCOMMENT(E308)","v":"01-0K8904"},1,{"$f":"FETCHCOMMENT(G308)","v":"GRANITE CONSTRUCTION COMPANY"},1]
["SUPER SEAL & STRIPE ",-4142,{"$f":"'[1]Construction Worksheet'!AQ830","v":2221941.5},"F",7,{"$f":"FETCHCOMMENT(E309)","v":"05-1J7804\n05-1H6504\n05-1K4504\n05-1K5104\n05-1K6404\n09-374704\n04-0P9304"},5,{"$f":"FETCHCOMMENT(G309)","v":"CALPORTLAND CONSTRUCTION\nGRANITE CONSTRUCTION COMPANY\nCENTRAL COAST FINANCIAL GROUP, INC. DBA CCFG CONSTRUCTION\nPAPICH CONSTRUCTION COMPANY INC\nBUGLER CONSTRUCTION, INC."},"4,5,9"]
["SUPERIOR HYDROSEEDING",-4142,{"$f":"'[1]Construction Worksheet'!AQ837","v":10212},"F",1,{"$f":"FETCHCOMMENT(E310)","v":"05-1N3404"},1,{"$f":"FETCHCOMMENT(G310)","v":"SOUZA ENGINEERING CONTRACTING, INC. DBA SOUZA CONSTRUCTION"},5]
["T & S DVBE",33,{"$f":"'[1]Construction Worksheet'!AQ868","v":13988218.35},"F",16,{"$f":"FETCHCOMMENT(E311)","v":"03-4H8704\n02-3H6904\n02-4H0604\n02-4H03U4\n03-2J5904\n01-0H6404\n02-1J75U4\n02-4H0104\n02-4H0704\n10-1L2804\n04-4G7804\n01-0K8904\n01-0H6504\n01-0K9504\n09-374504\n10-0X7404"},8,{"$f":"FETCHCOMMENT(G311)","v":"O.C. JONES & SONS, INC.\nDIG IT CONSTRUCTION, INC.\nHAT CREEK CONSTRUCTION & MATERIALS, INC.\nSTUDEBAKER ELECTRIC, INC.\nGRANITE CONSTRUCTION COMPANY\nWAHLUND CONSTRUCTION, INC.\nCALIFORNIA HIGHWAY CONSTRUCTION GROUP, INC.\nSTEELHEAD CONSTRUCTORS JV"},"1,2,3,4,9,10"]
["TALL TREE ENGINEERING",-4142,{"$f":"'[1]Construction Worksheet'!AQ873","v":70840},"F",1,{"$f":"FETCHCOMMENT(E312)","v":"01-0H6404"},1,{"$f":"FETCHCOMMENT(G312)","v":"WYLATTI RESOURCE MANAGEMENT, INC."},1]
["TEK SERVICES",33,{"$f":"'[1]Construction Worksheet'!AQ880","v":700478.01},"F",1,{"$f":"FETCHCOMMENT(E313)","v":"07-333604"},1,{"$f":"FETCHCOMMENT(G313)","v":"SULLY-MILLER CONTRACTING COMPANY"},7]
["TRI VALLEY WATER TRUCKS, INC.",33,{"$f":"'[1]Construction Worksheet'!AQ886","v":2160280},"F",2,{"$f":"FETCHCOMMENT(E314)","v":"04-2Q6104\n04-0AA624"},1,{"$f":"FETCHCOMMENT(G314)","v":"GRANITE ROCK COMPANY"},4]
["TUNGSTEN ENGINEERING",43,{"$f":"'[1]Construction Worksheet'!AQ896","v":4833634.5},"F",4,{"$f":"FETCHCOMMENT(E315)","v":"02-4H03U4\n02-1J75U4\n02-4H0704\n03-1H1404"},2,{"$f":"FETCHCOMMENT(G315)","v":"HAT CREEK CONSTRUCTION & MATERIALS, INC.\nMARTIN BROTHERS CONSTRUCTION\n"},"2,3"]
["TYRRELL RESOURCES",-4142,{"$f":"'[1]Construction Worksheet'!AQ914","v":3147385.85},"F",15,{"$f":"FETCHCOMMENT(E316)","v":"02-4H0604\n01-0F7104\n02-0K6404\n02-4H03U4\n02-1J75U4\n03-3H8304\n06-487404\n10-1L2804\n01-0K8904\n04-2K3604\n10-1H7004\n10-1K8404\n03-0J5604\n02-0J8504\n04-1Q7214"},10,{"$f":"FETCHCOMMENT(G316)","v":"HAT CREEK CONSTRUCTION & MATERIALS, INC.\nGHILOTTI CONSTRUCTION COMPANY, INC.\nMCCUEN CONSTRUCTION, INC.\nGRANITE CONSTRUCTION COMPANY\nO.C. JONES & SONS, INC.\nPACIFIC INFRASTRUCTURE CONSTRUCTION, LLC\nMOUNTAIN CASCADE INC\nMERCER-FRASER COMPANY\nTULLIS INC\nBAY CITIES PAVING & GRADING, INC."},"1,2,3,4,6,10"]
["WATER COMPONENTS & BUILDING ",33,{"$f":"'[1]Construction Worksheet'!AQ921","v":48072.58},"F",2,{"$f":"FETCHCOMMENT(E317)","v":"04-0K8004\n04-2K3604"},1,{"$f":"FETCHCOMMENT(G317)","v":"GHILOTTI BROS INC"},4]
["WEST COAST WATER & TRUCKING",43,{"$f":"'[1]Construction Worksheet'!AQ935","v":3179080},"F",5,{"$f":"FETCHCOMMENT(E318)","v":"03-4H8704\n03-0J01U4\n03-3H8304\n03-0J5604\n03-3J9004"},3,{"$f":"FETCHCOMMENT(G318)","v":"O.C. JONES & SONS, INC.\nMERCER-FRASER COMPANY\nPACIFIC INFRASTRUCTURE CONSTRUCTION, LLC"},3]
[]
[]
[]
[]
[]
[]
[]
["Prime Name",null,"# of Contracts","Contract Number","Prime Name","# of Contracts","Contract Number","Prime Name","# of Contracts","Contract Number"]
["ACCU CONSTRUCTION, INC.",null,3,{"$f":"FETCHCOMMENT(C327)","v":"07-348404\n07-356504\n07-356804\n"},"GHILOTTI BROS INC",3,{"$f":"FETCHCOMMENT(F327)","v":"04-0K8004\n04-0Q2004\n04-2K3604"},"POLO ENGINEERING, INC.",1,{"$f":"FETCHCOMMENT(I327)","v":"07-4P8504"}]
["ALL AMERICAN ASPHALT",null,1,{"$f":"FETCHCOMMENT(C328)","v":"08-1J4504"},"GHILOTTI CONSTRUCTION COMPANY INC",1,{"$f":"FETCHCOMMENT(F328)","v":"01-0F7104"},"POWELL CONSTRUCTORS, INC.",2,{"$f":"FETCHCOMMENT(I328)","v":"12-0R3154\n07-346104"}]
["AMERICA PACIFIC CONSTRUCTION, INC.",null,1,{"$f":"FETCHCOMMENT(C329)","v":"08-1P2804"},"GORDON N. BALL, INC.",4,{"$f":"FETCHCOMMENT(F329)","v":"04-4K3004\n04-2Q8004\n05-1G9504\n05-1H4704"},"PRECISION GRADE, INC.",1,{"$f":"FETCHCOMMENT(I329)","v":"05-1H6914"}]
["ARGONAUT CONSTRUCTORS",null,1,{"$f":"FETCHCOMMENT(C330)","v":"01-0H6004"},"GRANITE CONSTRUCTION COMPANY",12,{"$f":"FETCHCOMMENT(F330)","v":"06-0X2504\n05-1H6504\n05-1K6404\n06-487404\n08-1K6904\n12-0K91U4\n10-1L8704\n08-0G8504\n01-0K8904\n07-355204\n01-0K9504\n12-0S5304"},"PTM GENERAL ENGINEERING SERVICES, INC.",2,{"$f":"FETCHCOMMENT(I330)","v":"07-377604\n12-0U9204"}]
["AUTOBAHN CONSTRUCTION, INC.",null,1,{"$f":"FETCHCOMMENT(C331)","v":"12-0S7004"},"GRANITE ROCK COMPANY",2,{"$f":"FETCHCOMMENT(F331)","v":"04-2Q6104\n04-0AA624"},"QUIMU CONTRACTING, INC.",1,{"$f":"FETCHCOMMENT(I331)","v":"03-3J9104"}]
["BAKER ELECTRIC & RENEWABLES, LLC",null,1,{"$f":"FETCHCOMMENT(C332)","v":"12-0S8404"},"GRIFFITH COMPANY",3,{"$f":"FETCHCOMMENT(F332)","v":"07-370404\n06-0U2904\n08-1C07U4"},"R.J. NOBLE COMPANY",1,{"$f":"FETCHCOMMENT(I332)","v":"12-0R32U4"}]
["BAY CITIES PAVING & GRADING, INC.",null,8,{"$f":"FETCHCOMMENT(C333)","v":"10-0Q2104\n04-2K7404\n04-2Q5504\n04-2Q6504\n04-2Q5204\n04-0G3604\n03-4J1204\n04-1Q7214\n"},"HAT CREEK CONSTRUCTION & MATERIALS, INC.",5,{"$f":"FETCHCOMMENT(F333)","v":"02-4H0604\n02-4H03U4\n02-1J75U4\n02-4H0104\n02-4H0704"},"RASMUSSEN/VANGUARD",1,{"$f":"FETCHCOMMENT(I333)","v":"07-347904"}]
["BEADOR CONSTRUCTION COMPANY, INC.",null,4,{"$f":"FETCHCOMMENT(C334)","v":"07-4X9704\n08-1K4004\n12-0R3114\n07-319604"},"HAZARD CONSTRUCTION ENGR, LLC",3,{"$f":"FETCHCOMMENT(F334)","v":"11-430384\n11-056404\n11-430194"},"ROAD AND HIGHWAY BUILDERS LLC",1,{"$f":"FETCHCOMMENT(I334)","v":"09-379104"}]
["BOSCO CONSTRUCTORS, INC.",null,1,{"$f":"FETCHCOMMENT(C335)","v":"07-348204"},"HIGH-LIGHT ELECTRIC INC",1,{"$f":"FETCHCOMMENT(F335)","v":"06-1F1804"},"SB GENERAL ENGINEERING INC",1,{"$f":"FETCHCOMMENT(I335)","v":"09-387704"}]
["BUGLER CONSTRUCTION, INC.",null,1,{"$f":"FETCHCOMMENT(C336)","v":"04-0P9304"},"HIGHWAY SPECIALTY COMPANY",1,{"$f":"FETCHCOMMENT(F336)","v":"02-2J2204"},"SECURITY PAVING COMPANY, INC.",3,{"$f":"FETCHCOMMENT(I336)","v":"12-0R57U4\n06-0W79U4\n07-346504"}]
["C. A. RASMUSSEN, INC.",null,2,{"$f":"FETCHCOMMENT(C337)","v":"07-351704\n07-369704"},"INTERSTATE CIVIL CONSTRUCTION",3,{"$f":"FETCHCOMMENT(F337)","v":"08-1M7404\n08-1M0404\n08-1J3104"},"SOUZA ENGINEERING CONTRACTING",1,{"$f":"FETCHCOMMENT(I337)","v":"05-1N3404"}]
["CALIFORNIA HIGHWAY CONSTRUCTION GROUP, INC.",null,1,{"$f":"FETCHCOMMENT(C338)","v":"09-374504"},"JFL ELECTRIC, INC.",1,{"$f":"FETCHCOMMENT(F338)","v":"07-350324"},"ST. FRANCIS ELECTRIC, LLC.",1,{"$f":"FETCHCOMMENT(I338)","v":"04-0P7604"}]
["CALPORTLAND CONSTRUCTION",null,2,{"$f":"FETCHCOMMENT(C339)","v":"05-1J7804\n05-1K4504"},"M.C.M. CONSTRUCTION INC",1,{"$f":"FETCHCOMMENT(F339)","v":"05-1H4404"},"STEELHEAD CONSTRUCTORS JV",1,{"$f":"FETCHCOMMENT(I339)","v":"10-OX7404"}]
["CENTRAL COAST FINANCIAL GROUP, INC. DBA CCFG CONSTRUCTION",null,1,{"$f":"FETCHCOMMENT(C340)","v":"05-1K5104"},"MARTIN BROTHERS CONSTRUCTION",1,{"$f":"FETCHCOMMENT(F340)","v":"03-1H1404"},"STUDEBAKER ELECTRIC INC",1,{"$f":"FETCHCOMMENT(I340)","v":"03-2J5904\n"}]
["CERTIFIED COATINGS COMPANY",null,1,{"$f":"FETCHCOMMENT(C341)","v":"07-354704\n"},"MCCUEN CONSTRUCTION INC",1,{"$f":"FETCHCOMMENT(F341)","v":"02-0K6404"},"SULLY-MILLER CONTRACTING COMPANY",4,{"$f":"FETCHCOMMENT(I341)","v":"07-333604\n08-1J3004\n08-1J2704\n08-1J7204"}]
["CHUMO CONSTRUCTION, INC.",null,3,{"$f":"FETCHCOMMENT(C342)","v":"12-0S1404\n07-346304\n12-0U9104"},"MERCER-FRASER COMPANY",4,{"$f":"FETCHCOMMENT(F342)","v":"03-0J01U4\n01-0J8904\n01-0J2104\n03-0J5604"},"TENNYSON ELECTRIC LLC",1,{"$f":"FETCHCOMMENT(I342)","v":"04-3Q8504"}]
["COLUMBIA ELECTRIC, INC.",null,1,{"$f":"FETCHCOMMENT(C343)","v":"04-1Q2004"},"MIKE BROWN ELECTRIC CO.",1,{"$f":"FETCHCOMMENT(F343)","v":"04-0K1004"},"TORO ENTERPRISES INC",2,{"$f":"FETCHCOMMENT(I343)","v":"07-332304\n07-346804"}]
["CROSSTOWN ELECTRICAL & DATA, INC.",null,3,{"$f":"FETCHCOMMENT(C344)","v":"07-350314\n07-350334\n04-1W0904"},"MOUNTAIN CASCADE, INC.",1,{"$f":"FETCHCOMMENT(F344)","v":"10-1K8404"},"TSI ENGINEERING INC",1,{"$f":"FETCHCOMMENT(I344)","v":"08-1J3304"}]
["DIG IT CONSTRUCTION, INC.",null,1,{"$f":"FETCHCOMMENT(C345)","v":"02-3H6904"},"MYERS & SONS CONSTRUCTION INC",1,{"$f":"FETCHCOMMENT(F345)","v":"04-0P9204"},"TULLIS INC",1,{"$f":"FETCHCOMMENT(I345)","v":"02-0J8504"}]
["FBD VANGUARD CONSTRUCTION, INC.",null,2,{"$f":"FETCHCOMMENT(C346)","v":"08-1J6104\n10-1N9004"},"O.C. JONES & SONS, INC.",6,{"$f":"FETCHCOMMENT(F346)","v":"03-4H8704\n04-0K6404\n04-3J2604\n10-1L2804\n04-4G7804\n04-0Q1304"},"WAHLUND CONSTRUCTION, INC.",1,{"$f":"FETCHCOMMENT(I346)","v":"01-0H6504"}]
["FLATIRON WEST INC",null,1,{"$f":"FETCHCOMMENT(C347)","v":"08-1J5404"},"ORTIZ ENTERPRISES INC",2,{"$f":"FETCHCOMMENT(F347)","v":"12-0K8704\n12-0M9704"},"WYLATTI RESOURCE MANAGEMENT, INC.",1,{"$f":"FETCHCOMMENT(I347)","v":"01-0H6404"}]
["G R SUNDBERG, INC.",null,2,{"$f":"FETCHCOMMENT(C348)","v":"01-0K4104\n01-0K9404"},"PACIFIC INFRASTRUCTURE CONSTRUCTION, LLC",2,{"$f":"FETCHCOMMENT(F348)","v":"03-3H8304\n03-3J9004"},"YAKAR",2,{"$f":"FETCHCOMMENT(I348)","v":"07-358404\n07-348504"}]
["GENUINE ENGINEERING, INC.",null,1,{"$f":"FETCHCOMMENT(C349)","v":"07-4V5404"},"PAPICH CONSTRUCTION COMPANY INC",5,{"$f":"FETCHCOMMENT(F349)","v":"05-1Q03U4\n09-374704\n05-1J8604\n06-0Y1704\n09-366804"},null,null,{"$f":"FETCHCOMMENT(I349)","v":""}]
["GEORGE REED, INC.",null,2,{"$f":"FETCHCOMMENT(C350)","v":"10-1J8204\n10-1H7004"},"PETERSON-CHASE GENERAL ENGINEERING CONSTRUCTION, INC.",1,{"$f":"FETCHCOMMENT(F350)","v":"12-0R3134"},null,null,{"$f":"FETCHCOMMENT(I350)","v":""}]
[]
["To see names of prime contractors/contract numbers, place your cursor on comment tab (red triangle)."]
["Caltrans DBE Reports: http://www.dot.ca.gov/hq/bep/reports.htm"]